{"text_format":"1","workbook":"xlsx","n_sheets":4,"sheets":["Inicial","bd_sd","bd_clientes","bd_cnae"],"not_rendered":{"charts":0,"images":0,"macros":1,"external_links":0,"defined_names":0,"comments":1,"pivot_tables":0},"unopened":[],"bounds":{"document_bytes":16777216,"sheet_cells":100000,"rows_first":2000,"rows_last":500,"rows_between":2000,"halvings":0,"cell_chars":16384,"cell_head_chars":4096},"cells_cut":0,"cells_raw":0,"read":"whole","date_system":"1900"}

{"sheet":"Inicial","index":0,"n_rows":12,"n_cols":2,"rows_kept":12,"cut":false,"hidden":false,"merged":[]}
["Cliente",9999]
["Nome Fantasia",{"$f":"IF(B1=\"\",\"\",VLOOKUP($B$1,bd_clientes!$A$2:$F$209,2,1))","v":"EMPRESA EXEMPLO"}]
["Nome",{"$f":"IF(B1=\"\",\"\",VLOOKUP($B$1,bd_clientes!$A$2:$F$209,3,1))","v":"ILZA DONALD OLIVEIRA"}]
["Cnpj",{"$f":"IF(B1=\"\",\"\",VLOOKUP($B$1,bd_clientes!$A$2:$F$209,4,1))","v":"116.337.195-53"}]
["Inscrição estadual",{"$f":"IF(B1=\"\",\"\",VLOOKUP($B$1,bd_clientes!$A$2:$F$209,5,1))","v":""}]
["Cnae ",{"$f":"IF(B1=\"\",\"\",VLOOKUP($B$1,bd_clientes!$A$2:$F$209,6,1))","v":"9609-2/99"}]
["Cnae descrição",{"$f":"IF(B1=\"\",\"\",VLOOKUP(B6,bd_cnae!A1:B705,2,1))","v":"Representantes comerciais e agentes do comércio de produtos alimentícios, bebidas e fumo "}]
[]
[]
["Solicitações existentes"]
[]
[{"$f":"IF($B$1=\"\",\"\",VLOOKUP($B$1,bd_sd!$B$2:$E$1048576,3,1))","v":{"$error":"#N/A"}},{"$f":"IF(B1=\"\",\"\",VLOOKUP($B$1,bd_sd!$B$2:$E$1048576,2,1))","v":{"$error":"#N/A"}}]

{"sheet":"bd_sd","index":1,"n_rows":100,"n_cols":4,"rows_kept":100,"cut":false,"hidden":false,"merged":[]}
["Nome do cliente","Código do cliente","Solicitação de documento","Número da sd"]
[]
[]
[{"$f":"IF(B4=\"\",\"\",VLOOKUP(B4,bd_clientes!$A$2:$F$209,2,1))","v":""}]
[{"$f":"IF(B5=\"\",\"\",VLOOKUP(B5,bd_clientes!$A$2:$F$209,2,1))","v":""}]
[{"$f":"IF(B6=\"\",\"\",VLOOKUP(B6,bd_clientes!$A$2:$F$209,2,1))","v":""}]
[{"$f":"IF(B7=\"\",\"\",VLOOKUP(B7,bd_clientes!$A$2:$F$209,2,1))","v":""}]
[{"$f":"IF(B8=\"\",\"\",VLOOKUP(B8,bd_clientes!$A$2:$F$209,2,1))","v":""}]
[{"$f":"IF(B9=\"\",\"\",VLOOKUP(B9,bd_clientes!$A$2:$F$209,2,1))","v":""}]
[{"$f":"IF(B10=\"\",\"\",VLOOKUP(B10,bd_clientes!$A$2:$F$209,2,1))","v":""}]
[{"$f":"IF(B11=\"\",\"\",VLOOKUP(B11,bd_clientes!$A$2:$F$209,2,1))","v":""}]
[{"$f":"IF(B12=\"\",\"\",VLOOKUP(B12,bd_clientes!$A$2:$F$209,2,1))","v":""}]
[{"$f":"IF(B13=\"\",\"\",VLOOKUP(B13,bd_clientes!$A$2:$F$209,2,1))","v":""}]
[{"$f":"IF(B14=\"\",\"\",VLOOKUP(B14,bd_clientes!$A$2:$F$209,2,1))","v":""}]
[{"$f":"IF(B15=\"\",\"\",VLOOKUP(B15,bd_clientes!$A$2:$F$209,2,1))","v":""}]
[{"$f":"IF(B16=\"\",\"\",VLOOKUP(B16,bd_clientes!$A$2:$F$209,2,1))","v":""}]
[{"$f":"IF(B17=\"\",\"\",VLOOKUP(B17,bd_clientes!$A$2:$F$209,2,1))","v":""}]
[{"$f":"IF(B18=\"\",\"\",VLOOKUP(B18,bd_clientes!$A$2:$F$209,2,1))","v":""}]
[{"$f":"IF(B19=\"\",\"\",VLOOKUP(B19,bd_clientes!$A$2:$F$209,2,1))","v":""}]
[{"$f":"IF(B20=\"\",\"\",VLOOKUP(B20,bd_clientes!$A$2:$F$209,2,1))","v":""}]
[{"$f":"IF(B21=\"\",\"\",VLOOKUP(B21,bd_clientes!$A$2:$F$209,2,1))","v":""}]
[{"$f":"IF(B22=\"\",\"\",VLOOKUP(B22,bd_clientes!$A$2:$F$209,2,1))","v":""}]
[{"$f":"IF(B23=\"\",\"\",VLOOKUP(B23,bd_clientes!$A$2:$F$209,2,1))","v":""}]
[{"$f":"IF(B24=\"\",\"\",VLOOKUP(B24,bd_clientes!$A$2:$F$209,2,1))","v":""}]
[{"$f":"IF(B25=\"\",\"\",VLOOKUP(B25,bd_clientes!$A$2:$F$209,2,1))","v":""}]
[{"$f":"IF(B26=\"\",\"\",VLOOKUP(B26,bd_clientes!$A$2:$F$209,2,1))","v":""}]
[{"$f":"IF(B27=\"\",\"\",VLOOKUP(B27,bd_clientes!$A$2:$F$209,2,1))","v":""}]
[{"$f":"IF(B28=\"\",\"\",VLOOKUP(B28,bd_clientes!$A$2:$F$209,2,1))","v":""}]
[{"$f":"IF(B29=\"\",\"\",VLOOKUP(B29,bd_clientes!$A$2:$F$209,2,1))","v":""}]
[{"$f":"IF(B30=\"\",\"\",VLOOKUP(B30,bd_clientes!$A$2:$F$209,2,1))","v":""}]
[{"$f":"IF(B31=\"\",\"\",VLOOKUP(B31,bd_clientes!$A$2:$F$209,2,1))","v":""}]
[{"$f":"IF(B32=\"\",\"\",VLOOKUP(B32,bd_clientes!$A$2:$F$209,2,1))","v":""}]
[{"$f":"IF(B33=\"\",\"\",VLOOKUP(B33,bd_clientes!$A$2:$F$209,2,1))","v":""}]
[{"$f":"IF(B34=\"\",\"\",VLOOKUP(B34,bd_clientes!$A$2:$F$209,2,1))","v":""}]
[{"$f":"IF(B35=\"\",\"\",VLOOKUP(B35,bd_clientes!$A$2:$F$209,2,1))","v":""}]
[{"$f":"IF(B36=\"\",\"\",VLOOKUP(B36,bd_clientes!$A$2:$F$209,2,1))","v":""}]
[{"$f":"IF(B37=\"\",\"\",VLOOKUP(B37,bd_clientes!$A$2:$F$209,2,1))","v":""}]
[{"$f":"IF(B38=\"\",\"\",VLOOKUP(B38,bd_clientes!$A$2:$F$209,2,1))","v":""}]
[{"$f":"IF(B39=\"\",\"\",VLOOKUP(B39,bd_clientes!$A$2:$F$209,2,1))","v":""}]
[{"$f":"IF(B40=\"\",\"\",VLOOKUP(B40,bd_clientes!$A$2:$F$209,2,1))","v":""}]
[{"$f":"IF(B41=\"\",\"\",VLOOKUP(B41,bd_clientes!$A$2:$F$209,2,1))","v":""}]
[{"$f":"IF(B42=\"\",\"\",VLOOKUP(B42,bd_clientes!$A$2:$F$209,2,1))","v":""}]
[{"$f":"IF(B43=\"\",\"\",VLOOKUP(B43,bd_clientes!$A$2:$F$209,2,1))","v":""}]
[{"$f":"IF(B44=\"\",\"\",VLOOKUP(B44,bd_clientes!$A$2:$F$209,2,1))","v":""}]
[{"$f":"IF(B45=\"\",\"\",VLOOKUP(B45,bd_clientes!$A$2:$F$209,2,1))","v":""}]
[{"$f":"IF(B46=\"\",\"\",VLOOKUP(B46,bd_clientes!$A$2:$F$209,2,1))","v":""}]
[{"$f":"IF(B47=\"\",\"\",VLOOKUP(B47,bd_clientes!$A$2:$F$209,2,1))","v":""}]
[{"$f":"IF(B48=\"\",\"\",VLOOKUP(B48,bd_clientes!$A$2:$F$209,2,1))","v":""}]
[{"$f":"IF(B49=\"\",\"\",VLOOKUP(B49,bd_clientes!$A$2:$F$209,2,1))","v":""}]
[{"$f":"IF(B50=\"\",\"\",VLOOKUP(B50,bd_clientes!$A$2:$F$209,2,1))","v":""}]
[{"$f":"IF(B51=\"\",\"\",VLOOKUP(B51,bd_clientes!$A$2:$F$209,2,1))","v":""}]
[{"$f":"IF(B52=\"\",\"\",VLOOKUP(B52,bd_clientes!$A$2:$F$209,2,1))","v":""}]
[{"$f":"IF(B53=\"\",\"\",VLOOKUP(B53,bd_clientes!$A$2:$F$209,2,1))","v":""}]
[{"$f":"IF(B54=\"\",\"\",VLOOKUP(B54,bd_clientes!$A$2:$F$209,2,1))","v":""}]
[{"$f":"IF(B55=\"\",\"\",VLOOKUP(B55,bd_clientes!$A$2:$F$209,2,1))","v":""}]
[{"$f":"IF(B56=\"\",\"\",VLOOKUP(B56,bd_clientes!$A$2:$F$209,2,1))","v":""}]
[{"$f":"IF(B57=\"\",\"\",VLOOKUP(B57,bd_clientes!$A$2:$F$209,2,1))","v":""}]
[{"$f":"IF(B58=\"\",\"\",VLOOKUP(B58,bd_clientes!$A$2:$F$209,2,1))","v":""}]
[{"$f":"IF(B59=\"\",\"\",VLOOKUP(B59,bd_clientes!$A$2:$F$209,2,1))","v":""}]
[{"$f":"IF(B60=\"\",\"\",VLOOKUP(B60,bd_clientes!$A$2:$F$209,2,1))","v":""}]
[{"$f":"IF(B61=\"\",\"\",VLOOKUP(B61,bd_clientes!$A$2:$F$209,2,1))","v":""}]
[{"$f":"IF(B62=\"\",\"\",VLOOKUP(B62,bd_clientes!$A$2:$F$209,2,1))","v":""}]
[{"$f":"IF(B63=\"\",\"\",VLOOKUP(B63,bd_clientes!$A$2:$F$209,2,1))","v":""}]
[{"$f":"IF(B64=\"\",\"\",VLOOKUP(B64,bd_clientes!$A$2:$F$209,2,1))","v":""}]
[{"$f":"IF(B65=\"\",\"\",VLOOKUP(B65,bd_clientes!$A$2:$F$209,2,1))","v":""}]
[{"$f":"IF(B66=\"\",\"\",VLOOKUP(B66,bd_clientes!$A$2:$F$209,2,1))","v":""}]
[{"$f":"IF(B67=\"\",\"\",VLOOKUP(B67,bd_clientes!$A$2:$F$209,2,1))","v":""}]
[{"$f":"IF(B68=\"\",\"\",VLOOKUP(B68,bd_clientes!$A$2:$F$209,2,1))","v":""}]
[{"$f":"IF(B69=\"\",\"\",VLOOKUP(B69,bd_clientes!$A$2:$F$209,2,1))","v":""}]
[{"$f":"IF(B70=\"\",\"\",VLOOKUP(B70,bd_clientes!$A$2:$F$209,2,1))","v":""}]
[{"$f":"IF(B71=\"\",\"\",VLOOKUP(B71,bd_clientes!$A$2:$F$209,2,1))","v":""}]
[{"$f":"IF(B72=\"\",\"\",VLOOKUP(B72,bd_clientes!$A$2:$F$209,2,1))","v":""}]
[{"$f":"IF(B73=\"\",\"\",VLOOKUP(B73,bd_clientes!$A$2:$F$209,2,1))","v":""}]
[{"$f":"IF(B74=\"\",\"\",VLOOKUP(B74,bd_clientes!$A$2:$F$209,2,1))","v":""}]
[{"$f":"IF(B75=\"\",\"\",VLOOKUP(B75,bd_clientes!$A$2:$F$209,2,1))","v":""}]
[{"$f":"IF(B76=\"\",\"\",VLOOKUP(B76,bd_clientes!$A$2:$F$209,2,1))","v":""}]
[{"$f":"IF(B77=\"\",\"\",VLOOKUP(B77,bd_clientes!$A$2:$F$209,2,1))","v":""}]
[{"$f":"IF(B78=\"\",\"\",VLOOKUP(B78,bd_clientes!$A$2:$F$209,2,1))","v":""}]
[{"$f":"IF(B79=\"\",\"\",VLOOKUP(B79,bd_clientes!$A$2:$F$209,2,1))","v":""}]
[{"$f":"IF(B80=\"\",\"\",VLOOKUP(B80,bd_clientes!$A$2:$F$209,2,1))","v":""}]
[{"$f":"IF(B81=\"\",\"\",VLOOKUP(B81,bd_clientes!$A$2:$F$209,2,1))","v":""}]
[{"$f":"IF(B82=\"\",\"\",VLOOKUP(B82,bd_clientes!$A$2:$F$209,2,1))","v":""}]
[{"$f":"IF(B83=\"\",\"\",VLOOKUP(B83,bd_clientes!$A$2:$F$209,2,1))","v":""}]
[{"$f":"IF(B84=\"\",\"\",VLOOKUP(B84,bd_clientes!$A$2:$F$209,2,1))","v":""}]
[{"$f":"IF(B85=\"\",\"\",VLOOKUP(B85,bd_clientes!$A$2:$F$209,2,1))","v":""}]
[{"$f":"IF(B86=\"\",\"\",VLOOKUP(B86,bd_clientes!$A$2:$F$209,2,1))","v":""}]
[{"$f":"IF(B87=\"\",\"\",VLOOKUP(B87,bd_clientes!$A$2:$F$209,2,1))","v":""}]
[{"$f":"IF(B88=\"\",\"\",VLOOKUP(B88,bd_clientes!$A$2:$F$209,2,1))","v":""}]
[{"$f":"IF(B89=\"\",\"\",VLOOKUP(B89,bd_clientes!$A$2:$F$209,2,1))","v":""}]
[{"$f":"IF(B90=\"\",\"\",VLOOKUP(B90,bd_clientes!$A$2:$F$209,2,1))","v":""}]
[{"$f":"IF(B91=\"\",\"\",VLOOKUP(B91,bd_clientes!$A$2:$F$209,2,1))","v":""}]
[{"$f":"IF(B92=\"\",\"\",VLOOKUP(B92,bd_clientes!$A$2:$F$209,2,1))","v":""}]
[{"$f":"IF(B93=\"\",\"\",VLOOKUP(B93,bd_clientes!$A$2:$F$209,2,1))","v":""}]
[{"$f":"IF(B94=\"\",\"\",VLOOKUP(B94,bd_clientes!$A$2:$F$209,2,1))","v":""}]
[{"$f":"IF(B95=\"\",\"\",VLOOKUP(B95,bd_clientes!$A$2:$F$209,2,1))","v":""}]
[{"$f":"IF(B96=\"\",\"\",VLOOKUP(B96,bd_clientes!$A$2:$F$209,2,1))","v":""}]
[{"$f":"IF(B97=\"\",\"\",VLOOKUP(B97,bd_clientes!$A$2:$F$209,2,1))","v":""}]
[{"$f":"IF(B98=\"\",\"\",VLOOKUP(B98,bd_clientes!$A$2:$F$209,2,1))","v":""}]
[{"$f":"IF(B99=\"\",\"\",VLOOKUP(B99,bd_clientes!$A$2:$F$209,2,1))","v":""}]
[{"$f":"IF(B100=\"\",\"\",VLOOKUP(B100,bd_clientes!$A$2:$F$209,2,1))","v":""}]

{"sheet":"bd_clientes","index":2,"n_rows":2,"n_cols":6,"rows_kept":2,"cut":false,"hidden":false,"merged":[]}
["código","Nome","Fantasia","CNPJ","Insc","cnae"]
[9999,"EMPRESA EXEMPLO","ILZA DONALD OLIVEIRA","116.337.195-53","","9609-2/99"]

{"sheet":"bd_cnae","index":3,"n_rows":1482,"n_cols":2,"rows_kept":1482,"cut":false,"hidden":false,"merged":[]}
[8157,"Formulação de combustíveis "]
[8158,"Rerrefino de óleos lubrificantes "]
[41365,"Fabricação de adubos e fertilizantes organo-minerais "]
[41366,"Fabricação de adubos e fertilizantes, exceto organo-minerais "]
[43525,"Elaboração de combustíveis nucleares "]
[70220,"Fabricação de pólvoras, explosivos e detonantes "]
[70221,"Fabricação de artigos pirotécnicos "]
[70222,"Fabricação de fósforos de segurança "]
[72686,"Fabricação de chapas, filmes, papéis e outros materiais e produtos químicos para fotografia "]
[80721,"Fabricação de medicamentos alopáticos para uso humano "]
[80722,"Fabricação de medicamentos homeopáticos para uso humano "]
[80723,"Fabricação de medicamentos fitoterápicos para uso humano "]
[120226,"Fabricação de artefatos de material plástico para uso pessoal e doméstico "]
[120227,"Fabricação de artefatos de material plástico para usos industriais "]
[120228,"Fabricação de artefatos de material plástico para uso na construção, exceto tubos e acessórios "]
[157115,"Fabricação de estruturas pré-moldadas de concreto armado, em série e sob encomenda "]
[157116,"Fabricação de artefatos de cimento para uso na construção "]
[157117,"Fabricação de artefatos de fibrocimento para uso na construção "]
[157118,"Fabricação de casas pré-moldadas de concreto "]
[157119,"Preparação de massa de concreto e argamassa para construção "]
[161620,"Fabricação de azulejos e pisos "]
[161621,"Fabricação de artefatos de cerâmica e barro cozido para uso na construção, exceto azulejos e pisos "]
[164086,"Fabricação de material sanitário de cerâmica "]
[179456,"Britamento de pedras, exceto associado à extração "]
[179457,"Aparelhamento de pedras para construção, exceto associado à extração "]
[179458,"Aparelhamento de placas e execução de trabalhos em mármore, granito, ardósia e outras pedras "]
[182258,"Decoração, lapidação, gravação, vitrificação e outros trabalhos em cerâmica, louça, vidro e cristal "]
[182259,"Fabricação de abrasivos "]
[190902,"Produção de laminados planos de aço ao carbono, revestidos ou  "]
[190903,"Produção de laminados planos de aços especiais "]
[191205,"Produção de tubos de aço sem costura "]
[191206,"Produção de laminados longos de aço, exceto tubos "]
[191510,"Produção de arames de aço "]
[191511,"Produção de relaminados, trefilados e perfilados de aço, exceto arames "]
[197719,"Produção de alumínio e suas ligas em formas primárias "]
[197720,"Produção de laminados de alumínio "]
[200521,"Produção de zinco em formas primárias "]
[200522,"Produção de laminados de zinco "]
[200523,"Fabricação de ânodos para galvanoplastia "]
[230560,"Produção de forjados de aço "]
[230561,"Produção de forjados de metais -ferrosos e suas ligas "]
[230866,"Produção de artefatos estampados de metal "]
[230867,"Metalurgia do pó "]
[237410,"Fabricação de equipamento bélico pesado, exceto veículos militares de combate "]
[237411,"Fabricação de armas de fogo, outras armas e munições "]
[252902,"Fabricação de produtos de trefilados de metal padronizados "]
[252903,"Fabricação de produtos de trefilados de metal, exceto padronizados "]
[255366,"Serviços de confecção de armações metálicas para a construção "]
[255367,"Serviço de corte e dobra de metais "]
[281239,"Fabricação de equipamentos e instrumentos ópticos, peças e acessórios "]
[281240,"Fabricação de aparelhos fotográficos e cinematográficos, peças e acessórios "]
[295938,"Fabricação de geradores de corrente contínua e alternada, peças e acessórios "]
[295939,"Fabricação de transformadores, indutores, conversores, sincronizadores e semelhantes, peças e"]
[295940,"Fabricação de motores elétricos, peças e acessórios "]
[300443,"Fabricação de baterias e acumuladores para veículos automotores "]
[300444,"Recondicionamento de baterias e acumuladores para veículos automotores "]
[306957,"Fabricação de lâmpadas "]
[306958,"Fabricação de luminárias e outros equipamentos de iluminação "]
[313926,"Fabricação de aparelhos elétricos de uso pessoal, peças e acessórios "]
[325099,"Fabricação de eletrodos, contatos e outros artigos de carvão e grafita para uso elétrico, eletroímãs e"]
[325100,"Fabricação de equipamentos para sinalização e alarme "]
[333893,"Fabricação de compressores para uso industrial, peças e acessórios "]
[333894,"Fabricação de compressores para uso  industrial, peças e acessórios "]
[334199,"Fabricação de rolamentos para fins industriais "]
[334200,"Fabricação de equipamentos de transmissão para fins industriais, exceto rolamentos "]
[336542,"Fabricação de fornos industriais, aparelhos e equipamentos -elétricos para instalações térmicas,"]
[336543,"Fabricação de estufas e fornos elétricos para fins industriais, peças e acessórios "]
[336846,"Fabricação de máquinas, equipamentos e aparelhos para transporte e elevação de pessoas, peças e"]
[336847,"Fabricação de máquinas, equipamentos e aparelhos para transporte e elevação de cargas, peças e"]
[337486,"Fabricação de aparelhos e equipamentos de ar condicionado para uso industrial "]
[337487,"Fabricação de aparelhos e equipamentos de ar condicionado para uso -industrial "]
[339313,"Fabricação de máquinas de escrever, calcular e outros equipamentos -eletrônicos para escritório,"]
[369078,"Fabricação de automóveis, camionetas e utilitários "]
[369079,"Fabricação de chassis com motor para automóveis, camionetas e utilitários "]
[369080,"Fabricação de motores para automóveis, camionetas e utilitários "]
[372640,"Fabricação de caminhões e ônibus "]
[372641,"Fabricação de motores para caminhões e ônibus "]
[376202,"Fabricação de cabines, carrocerias e reboques para caminhões "]
[376203,"Fabricação de carrocerias para ônibus "]
[376204,"Fabricação de cabines, carrocerias e reboques para outros veículos automotores, exceto caminhões e"]
[383173,"Fabricação de bancos e estofados para veículos automotores "]
[405845,"Construção de embarcações de grande porte "]
[405846,"Construção de embarcações para uso comercial e para usos especiais, exceto de grande porte "]
[435006,"Fabricação de motocicletas "]
[435007,"Fabricação de peças e acessórios para motocicletas "]
[478986,"Lapidação de gemas "]
[478987,"Fabricação de artefatos de joalheria e ourivesaria "]
[478988,"Cunhagem de moedas e medalhas "]
[493261,"Fabricação de instrumentos -eletrônicos e utensílios para uso médico, cirúrgico, odontológico e de"]
[493262,"Fabricação de mobiliário para uso médico, cirúrgico, odontológico e de laboratório "]
[493263,"Fabricação de aparelhos e utensílios para correção de defeitos físicos e aparelhos ortopédicos em"]
[493264,"Fabricação de aparelhos e utensílios para correção de defeitos físicos e aparelhos ortopédicos em"]
[493265,"Fabricação de materiais para medicina e odontologia "]
[493266,"Serviços de prótese dentária "]
[493267,"Fabricação de artigos ópticos "]
[493269,"Serviço de laboratório óptico "]
[508451,"Fabricação de roupas de proteção e segurança e resistentes a fogo "]
[508452,"Fabricação de equipamentos e acessórios para segurança pessoal e profissional "]
[515725,"Manutenção e reparação de aparelhos e instrumentos de medida, teste e controle /"]
[515726,"Manutenção e reparação de aparelhos eletromédicos e eletroterapêuticos e equipamentos de irradiação /"]
[515727,"Manutenção e reparação de equipamentos e instrumentos ópticos /"]
[516333,"Manutenção e reparação de geradores, transformadores e motores elétricos /"]
[516334,"Manutenção e reparação de baterias e acumuladores elétricos, exceto para veículos /"]
[516636,"Manutenção e reparação de máquinas motrizes -elétricas /"]
[516637,"Manutenção e reparação de equipamentos hidráulicos e pneumáticos, exceto válvulas /"]
[516638,"Manutenção e reparação de válvulas industriais /"]
[516639,"Manutenção e reparação de compressores /"]
[516640,"Manutenção e reparação de equipamentos de transmissão para fins industriais /"]
[516641,"Manutenção e reparação de máquinas, aparelhos e equipamentos para instalações térmicas /"]
[516642,"Manutenção e reparação de máquinas e aparelhos de refrigeração e ventilação para uso industrial e"]
[516643,"Manutenção e reparação de máquinas, equipamentos e aparelhos para transporte e elevação de"]
[516644,"Manutenção e reparação de máquinas de escrever, calcular e de outros equipamentos -eletrônicos"]
[516645,"Manutenção e reparação de máquinas e equipamentos para uso geral  especificados anteriormente /"]
[516646,"Manutenção e reparação de máquinas e equipamentos para agricultura e pecuária /"]
[516647,"Manutenção e reparação de tratores agrícolas /"]
[516648,"Manutenção e reparação de máquinas-ferramenta /"]
[516649,"Manutenção e reparação de máquinas e equipamentos para a prospecção e extração de petróleo /"]
[516650,"Manutenção e reparação de máquinas e equipamentos para uso na extração mineral, exceto na"]
[516651,"Manutenção e reparação de tratores, exceto agrícolas /"]
[516652,"Manutenção e reparação de máquinas e equipamentos de terraplenagem, pavimentação e construção,"]
[516653,"Manutenção e reparação de máquinas para a indústria metalúrgica, exceto máquinas-ferramenta /"]
[516654,"Manutenção e reparação de máquinas e equipamentos para as indústrias de alimentos, bebidas e fumo /"]
[516655,"Manutenção e reparação de máquinas e equipamentos para a indústria têxtil, do vestuário, do couro e"]
[516656,"Manutenção e reparação de máquinas e aparelhos para a indústria de celulose, papel e papelão e"]
[516657,"Manutenção e reparação de máquinas e aparelhos para a indústria do plástico /"]
[517245,"Manutenção e reparação de aeronaves, exceto a manutenção na pista /"]
[517246,"Manutenção de aeronaves na pista * /"]
[517551,"Manutenção e reparação de embarcações e estruturas flutuantes /"]
[517552,"Manutenção e reparação de embarcações para esportes e lazer /"]
[522054,"Serviços de montagem de móveis de qualquer material /"]
[588527,"Geração de energia elétrica "]
[588528,"Atividades de coordenação e controle da operação da geração e transmissão de energia elétrica "]
[591785,"Produção de gás; processamento de gás natural "]
[591786,"Distribuição de combustíveis gasosos por redes urbanas "]
[621066,"Captação, tratamento e distribuição de água "]
[621067,"Distribuição de água por caminhões "]
[705528,"Recuperação de sucatas de alumínio "]
[708297,"Usinas de compostagem "]
[844077,"Construção de rodovias e ferrovias "]
[844078,"Pintura para sinalização em pistas rodoviárias e aeroportos "]
[847973,"Construção de barragens e represas para geração de energia elétrica "]
[847974,"Construção de estações e redes de distribuição de energia elétrica "]
[847975,"Manutenção de redes de distribuição de energia elétrica /"]
[847976,"Construção de estações e redes de telecomunicações "]
[847977,"Manutenção de estações e redes de telecomunicações /"]
[848276,"Construção de redes de abastecimento de água, coleta de esgoto e construções correlatas, exceto"]
[848277,"Obras de irrigação "]
[873875,"Montagem de estruturas metálicas "]
[873876,"Obras de montagem industrial /"]
[876339,"Construção de instalações esportivas e recreativas "]
[880813,"Demolição de edifícios e outras estruturas "]
[880814,"Preparação de canteiro e limpeza de terreno "]
[884678,"Instalações hidráulicas, sanitárias e de gás "]
[884679,"Instalação e manutenção de sistemas centrais de ar condicionado, de ventilação e refrigeração /"]
[884680,"Instalações de sistema de prevenção contra incêndio /"]
[887176,"Instalação de painéis publicitários "]
[887177,"Instalação de equipamentos para orientação à navegação marítima, fluvial e lacustre /"]
[887178,"Instalação, manutenção e reparação de elevadores, escadas e esteiras rolantes /"]
[887179,"Montagem e instalação de sistemas e equipamentos de iluminação e sinalização em vias públicas,"]
[887180,"Tratamentos térmicos, acústicos ou de vibração "]
[887631,"Impermeabilização em obras de engenharia civil "]
[887632,"Instalação de portas, janelas, tetos, divisórias e armários embutidos de qualquer material "]
[887633,"Obras de acabamento em gesso e estuque "]
[887634,"Serviços de pintura de edifícios em geral "]
[887635,"Aplicação de revestimentos e de resinas em interiores e exteriores "]
[912743,"Administração de obras "]
[912744,"Montagem e desmontagem de andaimes e outras estruturas temporárias "]
[912745,"Obras de alvenaria "]
[912746,"Serviços de operação e fornecimento de equipamentos para transporte e elevação de cargas e"]
[912747,"Perfuração e construção de poços de água "]
[953650,"Comércio a varejo de automóveis, camionetas e utilitários novos "]
[953651,"Comércio a varejo de automóveis, camionetas e utilitários usados "]
[953652,"Comércio por atacado de automóveis, camionetas e utilitários novos e usados "]
[953653,"Comércio por atacado de caminhões novos e usados "]
[953654,"Comércio por atacado de reboques e semi-reboques novos e usados "]
[953655,"Comércio por atacado de ônibus e microônibus novos e usados "]
[954259,"Representantes comerciais e agentes do comércio de veículos automotores "]
[954260,"Comércio sob consignação de veículos automotores "]
[960771,"Comércio por atacado de peças e acessórios novos para veículos automotores "]
[960772,"Comércio por atacado de pneumáticos e câmaras-de-ar "]
[960773,"Comércio a varejo de peças e acessórios novos para veículos automotores "]
[960774,"Comércio a varejo de peças e acessórios usados para veículos automotores "]
[960775,"Comércio a varejo de pneumáticos e câmaras-de-ar "]
[960776,"Representantes comerciais e agentes do comércio de peças e acessórios novos e usados para veículos"]
[964639,"Comércio por atacado de motocicletas e motonetas "]
[964640,"Comércio por atacado de peças e acessórios para motocicletas e motonetas "]
[964641,"Comércio a varejo de motocicletas e motonetas novas "]
[964642,"Comércio a varejo de motocicletas e motonetas usadas "]
[964643,"Comércio a varejo de peças e acessórios para motocicletas e motonetas "]
[964973,"Representantes comerciais e agentes do comércio de motocicletas e motonetas, peças e acessórios "]
[964974,"Comércio sob consignação de motocicletas e motonetas "]
[992821,"Representantes comerciais e agentes do comércio de medicamentos, cosméticos e produtos de"]
[992822,"Representantes comerciais e agentes do comércio de instrumentos e materiais odonto-médicohospitalares"]
["0111-3/01","Cultivo de arroz "]
["0111-3/02","Cultivo de milho "]
["0111-3/03","Cultivo de trigo "]
["0111-3/99","Cultivo de outros cereais  especificados anteriormente "]
["0112-1/01","Cultivo de algodão herbáceo "]
["0112-1/02","Cultivo de juta "]
["0112-1/99","Cultivo de outras fibras de lavoura temporária  especificadas anteriormente "]
["0113-0/00","Cultivo de cana-de-açúcar "]
["0114-8/00","Cultivo de fumo "]
["0115-6/00","Cultivo de soja "]
["0116-4/01","Cultivo de amendoim "]
["0116-4/02","Cultivo de girassol "]
["0116-4/03","Cultivo de mamona "]
["0116-4/99","Cultivo de outras oleaginosas de lavoura temporária  especificadas anteriormente "]
["0119-9/01","Cultivo de abacaxi "]
["0119-9/02","Cultivo de alho "]
["0119-9/03","Cultivo de batata-inglesa "]
["0119-9/04","Cultivo de cebola "]
["0119-9/05","Cultivo de feijão "]
["0119-9/06","Cultivo de mandioca "]
["0119-9/07","Cultivo de melão "]
["0119-9/08","Cultivo de melancia "]
["0119-9/09","Cultivo de tomate rasteiro "]
["0119-9/99","Cultivo de outras plantas de lavoura temporária  especificadas anteriormente "]
["0121-1/01","Horticultura, exceto morango "]
["0121-1/02","Cultivo de morango "]
["0122-9/00","Floricultura "]
["0131-8/00","Cultivo de laranja "]
["0132-6/00","Cultivo de uva "]
["0133-4/01","Cultivo de açaí "]
["0133-4/02","Cultivo de banana "]
["0133-4/03","Cultivo de caju "]
["0133-4/04","Cultivo de cítricos, exceto laranja "]
["0133-4/05","Cultivo de coco-da-baía "]
["0133-4/06","Cultivo de guaraná "]
["0133-4/07","Cultivo de maçã "]
["0133-4/08","Cultivo de mamão "]
["0133-4/09","Cultivo de maracujá "]
["0133-4/10","Cultivo de manga "]
["0133-4/11","Cultivo de pêssego "]
["0133-4/99","Cultivo de frutas de lavoura permanente  especificadas anteriormente "]
["0134-2/00","Cultivo de café "]
["0135-1/00","Cultivo de cacau "]
["0139-3/01","Cultivo de chá-da-índia "]
["0139-3/02","Cultivo de erva-mate "]
["0139-3/03","Cultivo de pimenta-do-reino "]
["0139-3/04","Cultivo de plantas para condimento, exceto pimenta-do-reino "]
["0139-3/05","Cultivo de dendê "]
["0139-3/06","Cultivo de seringueira "]
["0139-3/99","Cultivo de outras plantas de lavoura permanente  especificadas anteriormente "]
["0141-5/01","Produção de sementes certificadas, exceto de forrageiras para pasto "]
["0141-5/02","Produção de sementes certificadas de forrageiras para formação de pasto "]
["0142-3/00","Produção de mudas e outras formas de propagação vegetal, certificadas "]
["0151-2/01","Criação de bovinos para corte "]
["0151-2/02","Criação de bovinos para leite "]
["0151-2/03","Criação de bovinos, exceto para corte e leite "]
["0152-1/01","Criação de bufalinos "]
["0152-1/02","Criação de eqüinos "]
["0152-1/03","Criação de asininos e muares "]
["0153-9/01","Criação de caprinos "]
["0153-9/02","Criação de ovinos, inclusive para produção de lã "]
["0154-7/00","Criação de suínos "]
["0155-5/01","Criação de frangos para corte "]
["0155-5/02","Produção de pintos de um dia "]
["0155-5/03","Criação de outros galináceos, exceto para corte "]
["0155-5/04","Criação de aves, exceto galináceos "]
["0155-5/05","Produção de ovos "]
["0159-8/01","Apicultura "]
["0159-8/02","Criação de animais de estimação "]
["0159-8/03","Criação de escargô "]
["0159-8/04","Criação de bicho-da-seda "]
["0159-8/99","Criação de outros animais  especificados anteriormente "]
["0161-0/01","Serviço de pulverização e controle de pragas agrícolas "]
["0161-0/02","Serviço de poda de árvores para lavouras "]
["0161-0/03","Serviço de preparação de terreno, cultivo e colheita "]
["0161-0/99","Atividades de apoio à agricultura  especificadas anteriormente "]
["0162-8/01","Serviço de inseminação artificial de animais * "]
["0162-8/02","Serviço de tosquiamento de ovinos "]
["0162-8/03","Serviço de manejo de animais "]
["0162-8/99","Atividades de apoio à pecuária  especificadas anteriormente "]
["0163-6/00","Atividades de pós-colheita "]
["0170-9/00","Caça e serviços relacionados "]
["0210-1/01","Cultivo de eucalipto "]
["0210-1/02","Cultivo de acácia-negra "]
["0210-1/03","Cultivo de pinus "]
["0210-1/04","Cultivo de teca "]
["0210-1/05","Cultivo de espécies madeireiras, exceto eucalipto, acácia-negra, pinus e teca "]
["0210-1/06","Cultivo de mudas em viveiros florestais "]
["0210-1/07","Extração de madeira em florestas plantadas "]
["0210-1/08","Produção de carvão vegetal - florestas plantadas "]
["0210-1/09","Produção de casca de acácia-negra - florestas plantadas "]
["0210-1/99","Produção de produtos -madeireiros  especificados anteriormente em florestas plantadas "]
["0220-9/01","Extração de madeira em florestas nativas "]
["0220-9/02","Produção de carvão vegetal - florestas nativas "]
["0220-9/03","Coleta de castanha-do-pará em florestas nativas "]
["0220-9/04","Coleta de látex em florestas nativas "]
["0220-9/05","Coleta de palmito em florestas nativas "]
["0220-9/06","Conservação de florestas nativas "]
["0220-9/99","Coleta de produtos -madeireiros  especificados anteriormente em florestas nativas "]
["0230-6/00","Atividades de apoio à produção florestal "]
["0311-6/01","Pesca de peixes em água salgada "]
["0311-6/02","Pesca de crustáceos e moluscos em água salgada "]
["0311-6/03","Coleta de outros produtos marinhos "]
["0311-6/04","Atividades de apoio à pesca em água salgada "]
["0312-4/01","Pesca de peixes em água doce "]
["0312-4/02","Pesca de crustáceos e moluscos em água doce "]
["0312-4/03","Coleta de outros produtos aquáticos de água doce "]
["0312-4/04","Atividades de apoio à pesca em água doce "]
["0321-3/01","Criação de peixes em água salgada e salobra "]
["0321-3/02","Criação de camarões em água salgada e salobra "]
["0321-3/03","Criação de ostras e mexilhões em água salgada e salobra "]
["0321-3/04","Criação de peixes ornamentais em água salgada e salobra "]
["0321-3/05","Atividades de apoio à aqüicultura em água salgada e salobra "]
["0321-3/99","Cultivos e semicultivos da aqüicultura em água salgada e salobra  especificados anteriormente "]
["0322-1/01","Criação de peixes em água doce "]
["0322-1/02","Criação de camarões em água doce "]
["0322-1/03","Criação de ostras e mexilhões em água doce "]
["0322-1/04","Criação de peixes ornamentais em água doce "]
["0322-1/05","Ranicultura "]
["0322-1/06","Criação de jacaré "]
["0322-1/07","Atividades de apoio à aqüicultura em água doce "]
["0322-1/99","Cultivos e semicultivos da aqüicultura em água doce  especificados anteriormente "]
["0500-3/01","Extração de carvão mineral "]
["0500-3/02","Beneficiamento de carvão mineral "]
["0600-0/01","Extração de petróleo e gás natural "]
["0600-0/02","Extração e beneficiamento de xisto "]
["0600-0/03","Extração e beneficiamento de areias betuminosas "]
["0710-3/01","Extração de minério de ferro "]
["0710-3/02","Pelotização, sinterização e outros beneficiamentos de minério de ferro "]
["0721-9/01","Extração de minério de alumínio "]
["0721-9/02","Beneficiamento de minério de alumínio "]
["0722-7/01","Extração de minério de estanho "]
["0722-7/02","Beneficiamento de minério de estanho "]
["0723-5/01","Extração de minério de manganês "]
["0723-5/02","Beneficiamento de minério de manganês "]
["0724-3/01","Extração de minério de metais preciosos "]
["0724-3/02","Beneficiamento de minério de metais preciosos "]
["0725-1/00","Extração de minerais radioativos "]
["0729-4/01","Extração de minérios de nióbio e titânio "]
["0729-4/02","Extração de minério de tungstênio "]
["0729-4/03","Extração de minério de níquel "]
["0729-4/04","Extração de minérios de cobre, chumbo, zinco e outros minerais metálicos -ferrosos "]
["0729-4/05","Beneficiamento de minérios de cobre, chumbo, zinco e outros minerais metálicos -ferrosos "]
["0810-0/01","Extração de ardósia e beneficiamento associado "]
["0810-0/02","Extração de granito e beneficiamento associado "]
["0810-0/03","Extração de mármore e beneficiamento associado "]
["0810-0/04","Extração de calcário e dolomita e beneficiamento associado "]
["0810-0/05","Extração de gesso e caulim "]
["0810-0/06","Extração de areia, cascalho ou pedregulho e beneficiamento associado "]
["0810-0/07","Extração de argila e beneficiamento associado "]
["0810-0/08","Extração de saibro e beneficiamento associado "]
["0810-0/09","Extração de basalto e beneficiamento associado "]
["0810-0/10","Beneficiamento de gesso e caulim associado à extração "]
["0810-0/99","Extração e britamento de pedras e outros materiais para construção e beneficiamento associado "]
["0891-6/00","Extração de minerais para fabricação de adubos, fertilizantes e outros produtos químicos "]
["0892-4/01","Extração de sal marinho "]
["0892-4/02","Extração de sal-gema "]
["0892-4/03","Refino e outros tratamentos do sal "]
["0893-2/00","Extração de gemas (pedras preciosas e semipreciosas) "]
["0899-1/01","Extração de grafita "]
["0899-1/02","Extração de quartzo "]
["0899-1/03","Extração de amianto "]
["0899-1/99","Extração de outros minerais -metálicos  especificados anteriormente "]
["0910-6/00","Atividades de apoio à extração de petróleo e gás natural "]
["0990-4/01","Atividades de apoio à extração de minério de ferro "]
["0990-4/02","Atividades de apoio à extração de minerais metálicos -ferrosos "]
["0990-4/03","Atividades de apoio à extração de minerais -metálicos "]
["1011-2/01","Frigorífico - abate de bovinos "]
["1011-2/02","Frigorífico - abate de eqüinos "]
["1011-2/03","Frigorífico - abate de ovinos e caprinos "]
["1011-2/04","Frigorífico - abate de bufalinos "]
["1011-2/05","Matadouro - abate de reses sob contrato - exceto abate de suínos "]
["1012-1/01","Abate de aves "]
["1012-1/02","Abate de pequenos animais "]
["1012-1/03","Frigorífico - abate de suínos "]
["1012-1/04","Matadouro - abate de suínos sob contrato "]
["1013-9/01","Fabricação de produtos de carne "]
["1013-9/02","Preparação de subprodutos do abate "]
["1020-1/01","Preservação de peixes, crustáceos e moluscos "]
["1020-1/02","Fabricação de conservas de peixes, crustáceos e moluscos "]
["1031-7/00","Fabricação de conservas de frutas "]
["1032-5/01","Fabricação de conservas de palmito "]
["1032-5/99","Fabricação de conservas de legumes e outros vegetais, exceto palmito "]
["1033-3/01","Fabricação de sucos concentrados de frutas, hortaliças e legumes "]
["1033-3/02","Fabricação de sucos de frutas, hortaliças e legumes, exceto concentrados "]
["1041-4/00","Fabricação de óleos vegetais em bruto, exceto óleo de milho "]
["1042-2/00","Fabricação de óleos vegetais refinados, exceto óleo de milho "]
["1043-1/00","Fabricação de margarina e outras gorduras vegetais e de óleos -comestíveis de animais "]
["1051-1/00","Preparação do leite "]
["1052-0/00","Fabricação de laticínios "]
["1053-8/00","Fabricação de sorvetes e outros gelados comestíveis "]
["1061-9/01","Beneficiamento de arroz "]
["1061-9/02","Fabricação de produtos do arroz "]
["1062-7/00","Moagem de trigo e fabricação de derivados "]
["1063-5/00","Fabricação de farinha de mandioca e derivados "]
["1064-3/00","Fabricação de farinha de milho e derivados, exceto óleos de milho "]
["1065-1/01","Fabricação de amidos e féculas de vegetais "]
["1065-1/02","Fabricação de óleo de milho em bruto "]
["1065-1/03","Fabricação de óleo de milho refinado "]
["1066-0/00","Fabricação de alimentos para animais "]
["1069-4/00","Moagem e fabricação de produtos de origem vegetal  especificados anteriormente "]
["1071-6/00","Fabricação de açúcar em bruto "]
["1072-4/01","Fabricação de açúcar de cana refinado "]
["1072-4/02","Fabricação de açúcar de cereais (dextrose) e de beterraba "]
["1081-3/01","Beneficiamento de café "]
["1081-3/02","Torrefação e moagem de café "]
["1082-1/00","Fabricação de produtos à base de café "]
["1091-1/01","Fabricação de produtos de panificação industrial "]
["1091-1/02","Padaria e confeitaria com predominância de produção própria "]
["1092-9/00","Fabricação de biscoitos e bolachas "]
["1093-7/01","Fabricação de produtos derivados do cacau e de chocolates "]
["1093-7/02","Fabricação de frutas cristalizadas, balas e semelhantes "]
["1094-5/00","Fabricação de massas alimentícias "]
["1095-3/00","Fabricação de especiarias, molhos, temperos e condimentos "]
["1096-1/00","Fabricação de alimentos e pratos prontos "]
["1099-6/01","Fabricação de vinagres "]
["1099-6/02","Fabricação de pós alimentícios "]
["1099-6/03","Fabricação de fermentos e leveduras "]
["1099-6/04","Fabricação de gelo comum "]
["1099-6/05","Fabricação de produtos para infusão (chá, mate, etc.) "]
["1099-6/06","Fabricação de adoçantes naturais e artificiais "]
["1099-6/07","Fabricação de alimentos dietéticos e complementos alimentares "]
["1099-6/99","Fabricação de outros produtos alimentícios  especificados anteriormente "]
["1111-9/01","Fabricação de aguardente de cana-de-açúcar "]
["1111-9/02","Fabricação de outras aguardentes e bebidas destiladas "]
["1112-7/00","Fabricação de vinho "]
["1113-5/01","Fabricação de malte, inclusive malte uísque "]
["1113-5/02","Fabricação de cervejas e chopes "]
["1121-6/00","Fabricação de águas envasadas "]
["1122-4/01","Fabricação de refrigerantes "]
["1122-4/02","Fabricação de chá mate e outros chás prontos para consumo "]
["1122-4/03","Fabricação de refrescos, xaropes e pós para refrescos, exceto refrescos de frutas "]
["1122-4/04","Fabricação de bebidas isotônicas "]
["1122-4/99","Fabricação de outras bebidas -alcoólicas  especificadas anteriormente "]
["1210-7/00","Processamento industrial do fumo "]
["1220-4/01","Fabricação de cigarros "]
["1220-4/02","Fabricação de cigarrilhas e charutos "]
["1220-4/03","Fabricação de filtros para cigarros "]
["1220-4/99","Fabricação de outros produtos do fumo, exceto cigarros, cigarrilhas e charutos "]
["1311-1/00","Preparação e fiação de fibras de algodão "]
["1312-0/00","Preparação e fiação de fibras têxteis naturais, exceto algodão "]
["1313-8/00","Fiação de fibras artificiais e sintéticas "]
["1314-6/00","Fabricação de linhas para costurar e bordar "]
["1321-9/00","Tecelagem de fios de algodão "]
["1322-7/00","Tecelagem de fios de fibras têxteis naturais, exceto algodão "]
["1323-5/00","Tecelagem de fios de fibras artificiais e sintéticas "]
["1330-8/00","Fabricação de tecidos de malha "]
["1340-5/01","Estamparia e texturização em fios, tecidos, artefatos têxteis e peças do vestuário "]
["1340-5/02","Alvejamento, tingimento e torção em fios, tecidos, artefatos têxteis e peças do vestuário "]
["1340-5/99","Outros serviços de acabamento em fios, tecidos, artefatos têxteis e peças do vestuário "]
["1351-1/00","Fabricação de artefatos têxteis para uso doméstico "]
["1352-9/00","Fabricação de artefatos de tapeçaria "]
["1353-7/00","Fabricação de artefatos de cordoaria "]
["1354-5/00","Fabricação de tecidos especiais, inclusive artefatos "]
["1359-6/00","Fabricação de outros produtos têxteis  especificados anteriormente "]
["1411-8/01","Confecção de roupas íntimas "]
["1411-8/02","Facção de roupas íntimas "]
["1412-6/01","Confecção de peças do vestuário, exceto roupas íntimas e as confeccionadas sob medida "]
["1412-6/02","Confecção, sob medida, de peças do vestuário, exceto roupas íntimas /"]
["1412-6/03","Facção de peças do vestuário, exceto roupas íntimas "]
["1413-4/01","Confecção de roupas profissionais, exceto sob medida "]
["1413-4/02","Confecção, sob medida, de roupas profissionais /"]
["1413-4/03","Facção de roupas profissionais "]
["1414-2/00","Fabricação de acessórios do vestuário, exceto para segurança e proteção "]
["1421-5/00","Fabricação de meias "]
["1422-3/00","Fabricação de artigos do vestuário, produzidos em malharias e tricotagens, exceto meias "]
["1510-6/00","Curtimento e outras preparações de couro "]
["1521-1/00","Fabricação de artigos para viagem, bolsas e semelhantes de qualquer material "]
["1529-7/00","Fabricação de artefatos de couro  especificados anteriormente "]
["1531-9/01","Fabricação de calçados de couro "]
["1531-9/02","Acabamento de calçados de couro sob contrato "]
["1532-7/00","Fabricação de tênis de qualquer material "]
["1533-5/00","Fabricação de calçados de material sintético "]
["1539-4/00","Fabricação de calçados de materiais  especificados anteriormente "]
["1540-8/00","Fabricação de partes para calçados, de qualquer material "]
["1610-2/01","Serrarias com desdobramento de madeira "]
["1610-2/02","Serrarias sem desdobramento de madeira "]
["1621-8/00","Fabricação de madeira laminada e de chapas de madeira compensada, prensada e aglomerada "]
["1622-6/01","Fabricação de casas de madeira pré-fabricadas "]
["1622-6/02","Fabricação de esquadrias de madeira e de peças de madeira para instalações industriais e comerciais "]
["1622-6/99","Fabricação de outros artigos de carpintaria para construção "]
["1623-4/00","Fabricação de artefatos de tanoaria e de embalagens de madeira "]
["1629-3/01","Fabricação de artefatos diversos de madeira, exceto móveis "]
["1629-3/02","Fabricação de artefatos diversos de cortiça, bambu, palha, vime e outros materiais trançados, exceto"]
["1710-9/00","Fabricação de celulose e outras pastas para a fabricação de papel "]
["1721-4/00","Fabricação de papel "]
["1722-2/00","Fabricação de cartolina e papel-cartão "]
["1731-1/00","Fabricação de embalagens de papel "]
["1732-0/00","Fabricação de embalagens de cartolina e papel-cartão "]
["1733-8/00","Fabricação de chapas e de embalagens de papelão ondulado "]
["1741-9/01","Fabricação de formulários contínuos "]
["1741-9/02","Fabricação de produtos de papel, cartolina, papel-cartão e papelão ondulado para uso industrial,"]
["1742-7/01","Fabricação de fraldas descartáveis "]
["1742-7/02","Fabricação de absorventes higiênicos "]
["1742-7/99","Fabricação de produtos de papel para uso doméstico e higiênico-sanitário  especificados"]
["1749-4/00","Fabricação de produtos de pastas celulósicas, papel, cartolina, papel-cartão e papelão ondulado "]
["1811-3/01","Impressão de jornais "]
["1811-3/02","Impressão de livros, revistas e outras publicações periódicas "]
["1812-1/00","Impressão de material de segurança "]
["1813-0/01","Impressão de material para uso publicitário "]
["1813-0/99","Impressão de material para outros usos "]
["1821-1/00","Serviços de pré-impressão "]
["1822-9/01","Serviços de encadernação e plastificação "]
["1822-9/99","Serviços de acabamentos gráficos, exceto encadernação e plastificação "]
["1830-0/01","Reprodução de som em qualquer suporte "]
["1830-0/02","Reprodução de vídeo em qualquer suporte "]
["1830-0/03","Reprodução de software em qualquer suporte "]
["1910-1/00","Coquerias "]
["1921-7/00","Fabricação de produtos do refino de petróleo "]
["1922-5/99","Fabricação de outros produtos derivados do petróleo, exceto produtos do refino "]
["1931-4/00","Fabricação de álcool "]
["1932-2/00","Fabricação de biocombustíveis, exceto álcool "]
["2.2 DESCR","IÇAO Obrigatória? Inscrição Obrigatória se a"]
["2.2 DESCR","IÇAO Obrigatória? Inscrição Obrigatória se a"]
["2.2 DESCR","IÇAO Obrigatória? Inscrição Obrigatória se a"]
["2.2 DESCR","IÇAO Obrigatória? Inscrição Obrigatória se a"]
["2.2 DESCR","IÇAO Obrigatória? Inscrição Obrigatória se a"]
["2.2 DESCR","IÇAO Obrigatória? Inscrição Obrigatória se a"]
["2.2 DESCR","IÇAO Obrigatória? Inscrição Obrigatória se a"]
["2.2 DESCR","IÇAO Obrigatória? Inscrição Obrigatória se a"]
["2.2 DESCR","IÇAO Obrigatória? Inscrição Obrigatória se a"]
["2.2 DESCR","IÇAO Obrigatória? Inscrição Obrigatória se a"]
["2.2 DESCR","IÇAO Obrigatória? Inscrição Obrigatória se a"]
["2011-8/00","Fabricação de cloro e álcalis "]
["2012-6/00","Fabricação de intermediários para fertilizantes "]
["2014-2/00","Fabricação de gases industriais "]
["2019-3/99","Fabricação de outros produtos químicos inorgânicos  especificados anteriormente "]
["2021-5/00","Fabricação de produtos petroquímicos básicos "]
["2022-3/00","Fabricação de intermediários para plastificantes, resinas e fibras "]
["2029-1/00","Fabricação de produtos químicos orgânicos  especificados anteriormente "]
["2031-2/00","Fabricação de resinas termoplásticas "]
["2032-1/00","Fabricação de resinas termofixas "]
["2033-9/00","Fabricação de elastômeros "]
["2040-1/00","Fabricação de fibras artificiais e sintéticas "]
["2051-7/00","Fabricação de defensivos agrícolas "]
["2052-5/00","Fabricação de desinfestantes domissanitários "]
["2061-4/00","Fabricação de sabões e detergentes sintéticos "]
["2062-2/00","Fabricação de produtos de limpeza e polimento "]
["2063-1/00","Fabricação de cosméticos, produtos de perfumaria e de higiene pessoal "]
["2071-1/00","Fabricação de tintas, vernizes, esmaltes e lacas "]
["2072-0/00","Fabricação de tintas de impressão "]
["2073-8/00","Fabricação de impermeabilizantes, solventes e produtos afins "]
["2091-6/00","Fabricação de adesivos e selantes "]
["2093-2/00","Fabricação de aditivos de uso industrial "]
["2094-1/00","Fabricação de catalisadores "]
["2099-1/99","Fabricação de outros produtos químicos  especificados anteriormente "]
["2110-6/00","Fabricação de produtos farmoquímicos "]
["2122-0/00","Fabricação de medicamentos para uso veterinário "]
["2123-8/00","Fabricação de preparações farmacêuticas "]
["2211-1/00","Fabricação de pneumáticos e de câmaras-de-ar "]
["2212-9/00","Reforma de pneumáticos usados "]
["2219-6/00","Fabricação de artefatos de borracha  especificados anteriormente "]
["2221-8/00","Fabricação de laminados planos e tubulares de material plástico "]
["2222-6/00","Fabricação de embalagens de material plástico "]
["2223-4/00","Fabricação de tubos e acessórios de material plástico para uso na construção "]
["2229-3/99","Fabricação de artefatos de material plástico para outros usos  especificados anteriormente "]
["2311-7/00","Fabricação de vidro plano e de segurança "]
["2312-5/00","Fabricação de embalagens de vidro "]
["2319-2/00","Fabricação de artigos de vidro "]
["2320-6/00","Fabricação de cimento "]
["2330-3/99","Fabricação de outros artefatos e produtos de concreto, cimento, fibrocimento, gesso e materiais"]
["2341-9/00","Fabricação de produtos cerâmicos refratários "]
["2349-4/99","Fabricação de produtos cerâmicos -refratários  especificados anteriormente "]
["2392-3/00","Fabricação de cal e gesso "]
["2399-1/99","Fabricação de outros produtos de minerais -metálicos  especificados anteriormente "]
["2411-3/00","Produção de ferro-gusa "]
["2412-1/00","Produção de ferroligas "]
["2421-1/00","Produção de semi-acabados de aço "]
["2431-8/00","Produção de tubos de aço com costura "]
["2439-3/00","Produção de outros tubos de ferro e aço "]
["2442-3/00","Metalurgia dos metais preciosos "]
["2443-1/00","Metalurgia do cobre "]
["2449-1/99","Metalurgia de outros metais -ferrosos e suas ligas  especificados anteriormente "]
["2451-2/00","Fundição de ferro e aço "]
["2452-1/00","Fundição de metais -ferrosos e suas ligas "]
["2511-0/00","Fabricação de estruturas metálicas "]
["2512-8/00","Fabricação de esquadrias de metal "]
["2513-6/00","Fabricação de obras de caldeiraria pesada "]
["2521-7/00","Fabricação de tanques, reservatórios metálicos e caldeiras para aquecimento central "]
["2522-5/00","Fabricação de caldeiras geradoras de vapor, exceto para aquecimento central e para veículos "]
["2539-0/01","Serviços de usinagem, tornearia e solda "]
["2539-0/02","Serviços de tratamento e revestimento em metais "]
["2541-1/00","Fabricação de artigos de cutelaria "]
["2542-0/00","Fabricação de artigos de serralheria, exceto esquadrias "]
["2543-8/00","Fabricação de ferramentas "]
["2591-8/00","Fabricação de embalagens metálicas "]
["2593-4/00","Fabricação de artigos de metal para uso doméstico e pessoal "]
["2599-3/99","Fabricação de outros produtos de metal  especificados anteriormente "]
["2610-8/00","Fabricação de componentes eletrônicos "]
["2621-3/00","Fabricação de equipamentos de informática "]
["2622-1/00","Fabricação de periféricos para equipamentos de informática "]
["2631-1/00","Fabricação de equipamentos transmissores de comunicação, peças e acessórios "]
["2632-9/00","Fabricação de aparelhos telefônicos e de outros equipamentos de comunicação, peças e acessórios "]
["2640-0/00","Fabricação de aparelhos de recepção, reprodução, gravação e amplificação de áudio e vídeo "]
["2651-5/00","Fabricação de aparelhos e equipamentos de medida, teste e controle "]
["2652-3/00","Fabricação de cronômetros e relógios "]
["2660-4/00","Fabricação de aparelhos eletromédicos e eletroterapêuticos e equipamentos de irradiação "]
["2680-9/00","Fabricação de mídias virgens, magnéticas e ópticas "]
["2721-0/00","Fabricação de pilhas, baterias e acumuladores elétricos, exceto para veículos automotores "]
["2731-7/00","Fabricação de aparelhos e equipamentos para distribuição e controle de energia elétrica "]
["2732-5/00","Fabricação de material elétrico para instalações em circuito de consumo "]
["2733-3/00","Fabricação de fios, cabos e condutores elétricos isolados "]
["2751-1/00","Fabricação de fogões, refrigeradores e máquinas de lavar e secar para uso doméstico, peças e"]
["2759-7/99","Fabricação de outros aparelhos eletrodomésticos  especificados anteriormente, peças e acessórios "]
["2790-2/99","Fabricação de outros equipamentos e aparelhos elétricos  especificados anteriormente "]
["2811-9/00","Fabricação de motores e turbinas, peças e acessórios, exceto para aviões e veículos rodoviários "]
["2812-7/00","Fabricação de equipamentos hidráulicos e pneumáticos, peças e acessórios, exceto válvulas "]
["2813-5/00","Fabricação de válvulas, registros e dispositivos semelhantes, peças e acessórios "]
["2823-2/00","Fabricação de máquinas e aparelhos de refrigeração e ventilação para uso industrial e comercial,"]
["2825-9/00","Fabricação de máquinas e equipamentos para saneamento básico e ambiental, peças e acessórios "]
["2829-1/99","Fabricação de outras máquinas e equipamentos de uso geral  especificados anteriormente, peças e"]
["2831-3/00","Fabricação de tratores agrícolas, peças e acessórios "]
["2832-1/00","Fabricação de equipamentos para irrigação agrícola, peças e acessórios "]
["2833-0/00","Fabricação de máquinas e equipamentos para a agricultura e pecuária, peças e acessórios, exceto"]
["2840-2/00","Fabricação de máquinas-ferramenta, peças e acessórios "]
["2851-8/00","Fabricação de máquinas e equipamentos para a prospecção e extração de petróleo, peças e acessórios "]
["2852-6/00","Fabricação de outras máquinas e equipamentos para uso na extração mineral, peças e acessórios,"]
["2853-4/00","Fabricação de tratores, peças e acessórios, exceto agrícolas "]
["2854-2/00","Fabricação de máquinas e equipamentos para terraplenagem, pavimentação e construção, peças e"]
["2861-5/00","Fabricação de máquinas para a indústria metalúrgica, peças e acessórios, exceto máquinas-ferramenta "]
["2862-3/00","Fabricação de máquinas e equipamentos para as indústrias de alimentos, bebidas e fumo, peças e"]
["2863-1/00","Fabricação de máquinas e equipamentos para a indústria têxtil, peças e acessórios "]
["2864-0/00","Fabricação de máquinas e equipamentos para as indústrias do vestuário, do couro e de calçados,"]
["2865-8/00","Fabricação de máquinas e equipamentos para as indústrias de celulose, papel e papelão e artefatos,"]
["2866-6/00","Fabricação de máquinas e equipamentos para a indústria do plástico, peças e acessórios "]
["2869-1/00","Fabricação de máquinas e equipamentos para uso industrial específico  especificados"]
["2941-7/00","Fabricação de peças e acessórios para o sistema motor de veículos automotores "]
["2942-5/00","Fabricação de peças e acessórios para os sistemas de marcha e transmissão de veículos automotores "]
["2943-3/00","Fabricação de peças e acessórios para o sistema de freios de veículos automotores "]
["2944-1/00","Fabricação de peças e acessórios para o sistema de direção e suspensão de veículos automotores "]
["2945-0/00","Fabricação de material elétrico e eletrônico para veículos automotores, exceto baterias "]
["2949-2/99","Fabricação de outras peças e acessórios para veículos automotores  especificadas anteriormente "]
["2950-6/00","Recondicionamento e recuperação de motores para veículos automotores /"]
["3012-1/00","Construção de embarcações para esporte e lazer "]
["3031-8/00","Fabricação de locomotivas, vagões e outros materiais rodantes "]
["3032-6/00","Fabricação de peças e acessórios para veículos ferroviários "]
["3041-5/00","Fabricação de aeronaves "]
["3042-3/00","Fabricação de turbinas, motores e outros componentes e peças para aeronaves "]
["3050-4/00","Fabricação de veículos militares de combate "]
["3092-0/00","Fabricação de bicicletas e triciclos -motorizados, peças e acessórios "]
["3099-7/00","Fabricação de equipamentos de transporte  especificados anteriormente "]
["3101-2/00","Fabricação de móveis com predominância de madeira "]
["3102-1/00","Fabricação de móveis com predominância de metal "]
["3103-9/00","Fabricação de móveis de outros materiais, exceto madeira e metal "]
["3104-7/00","Fabricação de colchões "]
["3212-4/00","Fabricação de bijuterias e artefatos semelhantes "]
["3220-5/00","Fabricação de instrumentos musicais, peças e acessórios "]
["3230-2/00","Fabricação de artefatos para pesca e esporte "]
["3240-0/01","Fabricação de jogos eletrônicos "]
["3240-0/02","Fabricação de mesas de bilhar, de sinuca e acessórios  associada à locação "]
["3240-0/03","Fabricação de mesas de bilhar, de sinuca e acessórios associada à locação "]
["3240-0/99","Fabricação de outros brinquedos e jogos recreativos  especificados anteriormente "]
["3291-4/00","Fabricação de escovas, pincéis e vassouras "]
["3299-0/01","Fabricação de guarda-chuvas e ilares "]
["3299-0/02","Fabricação de canetas, lápis e outros artigos para escritório "]
["3299-0/03","Fabricação de letras, letreiros e placas de qualquer material, exceto luminosos "]
["3299-0/04","Fabricação de painéis e letreiros luminosos "]
["3299-0/05","Fabricação de aviamentos para costura "]
["3299-0/06","Fabricação de velas, inclusive decorativas "]
["3299-0/99","Fabricação de produtos diversos  especificados anteriormente "]
["3311-2/00","Manutenção e reparação de tanques, reservatórios metálicos e caldeiras, exceto para veículos /"]
["3313-9/99","Manutenção e reparação de máquinas, aparelhos e materiais elétricos  especificados anteriormente /"]
["3314-7/99","Manutenção e reparação de outras máquinas e equipamentos para usos industriais  especificados"]
["3315-5/00","Manutenção e reparação de veículos ferroviários /"]
["3319-8/00","Manutenção e reparação de equipamentos e produtos  especificados anteriormente /"]
["3321-0/00","Instalação de máquinas e equipamentos industriais "]
["3329-5/99","Instalação de outros equipamentos  especificados anteriormente "]
["3512-3/00","Transmissão de energia elétrica "]
["3513-1/00","Comércio atacadista de energia elétrica "]
["3514-0/00","Distribuição de energia elétrica "]
["3530-1/00","Produção e distribuição de vapor, água quente e ar condicionado "]
["3701-1/00","Gestão de redes de esgoto "]
["3702-9/00","Atividades relacionadas a esgoto, exceto a gestão de redes "]
["3811-4/00","Coleta de resíduos -perigosos "]
["3812-2/00","Coleta de resíduos perigosos "]
["3821-1/00","Tratamento e disposição de resíduos -perigosos "]
["3822-0/00","Tratamento e disposição de resíduos perigosos "]
["3831-9/99","Recuperação de materiais metálicos, exceto alumínio "]
["3832-7/00","Recuperação de materiais plásticos "]
["3839-4/99","Recuperação de materiais  especificados anteriormente "]
["3900-5/00","Descontaminação e outros serviços de gestão de resíduos "]
["4110-7/00","Incorporação de empreendimentos imobiliários "]
["4120-4/00","Construção de edifícios "]
["4212-0/00","Construção de obras de arte especiais "]
["4213-8/00","Obras de urbanização - ruas, praças e calçadas "]
["4223-5/00","Construção de redes de transportes por dutos, exceto para água e esgoto "]
["4291-0/00","Obras portuárias, marítimas e fluviais "]
["4299-5/99","Outras obras de engenharia civil  especificadas anteriormente "]
["4312-6/00","Perfurações e sondagens "]
["4313-4/00","Obras de terraplenagem "]
["4319-3/00","Serviços de preparação do terreno  especificados anteriormente "]
["4321-5/00","Instalação e manutenção elétrica "]
["4329-1/99","Outras obras de instalações em construções  especificadas anteriormente "]
["4330-4/99","Outras obras de acabamento da construção "]
["4391-6/00","Obras de fundações "]
["4399-1/99","Serviços especializados para construção  especificados anteriormente "]
["4520-0/01","Serviços de manutenção e reparação mecânica de veículos automotores /"]
["4520-0/02","Serviços de lanternagem ou funilaria e pintura de veículos automotores /"]
["4520-0/03","Serviços de manutenção e reparação elétrica de veículos automotores /"]
["4520-0/04","Serviços de alinhamento e balanceamento de veículos automotores /"]
["4520-0/05","Serviços de lavagem, lubrificação e polimento de veículos automotores "]
["4520-0/06","Serviços de borracharia para veículos automotores "]
["4520-0/07","Serviços de instalação, manutenção e reparação de acessórios para veículos automotores /"]
["4520-0/08","Serviços de capotaria /"]
["4543-9/00","Manutenção e reparação de motocicletas e motonetas /"]
["4611-7/00","Representantes comerciais e agentes do comércio de matérias-primas agrícolas e animais vivos "]
["4612-5/00","Representantes comerciais e agentes do comércio de combustíveis, minerais, produtos siderúrgicos e"]
["4613-3/00","Representantes comerciais e agentes do comércio de madeira, material de construção e ferragens "]
["4614-1/00","Representantes comerciais e agentes do comércio de máquinas, equipamentos, embarcações e"]
["4615-0/00","Representantes comerciais e agentes do comércio de eletrodomésticos, móveis e artigos de uso"]
["4616-8/00","Representantes comerciais e agentes do comércio de têxteis, vestuário, calçados e artigos de viagem "]
["4617-6/00","Representantes comerciais e agentes do comércio de produtos alimentícios, bebidas e fumo "]
[]
[992823,"Representantes comerciais e agentes do comércio de jornais, revistas e outras publicações "]
["4618-4/99","Outros representantes comerciais e agentes do comércio especializado em produtos  especificados"]
["anteriorm","ente "]
["4619-2/00","Representantes comerciais e agentes do comércio de mercadorias em geral  especializado "]
["4621-4/00","Comércio atacadista de café em grão "]
["4622-2/00","Comércio atacadista de soja "]
[994557,"Comércio atacadista de animais vivos "]
[994558,"Comércio atacadista de couros, lãs, peles e outros subprodutos -comestíveis de origem animal "]
[994559,"Comércio atacadista de algodão "]
[994560,"Comércio atacadista de fumo em folha  beneficiado "]
[994561,"Comércio atacadista de cacau * "]
[994562,"Comércio atacadista de sementes, flores, plantas e gramas "]
[994563,"Comércio atacadista de sisal "]
[994564,"Comércio atacadista de matérias-primas agrícolas com atividade de fracionamento e"]
["acondicio","namento associada "]
[994565,"Comércio atacadista de alimentos para animais "]
["4623-1/99","Comércio atacadista de matérias-primas agrícolas  especificadas anteriormente "]
["4631-1/00","Comércio atacadista de leite e laticínios "]
["4632-0/01","Comércio atacadista de cereais e leguminosas beneficiados "]
["4632-0/02","Comércio atacadista de farinhas, amidos e féculas "]
["4632-0/03","Comércio atacadista de cereais e leguminosas beneficiados, farinhas, amidos e féculas, com atividade"]
["de fracio","namento e acondicionamento associada "]
[998422,"Comércio atacadista de frutas, verduras, raízes, tubérculos, hortaliças e legumes frescos "]
[998423,"Comércio atacadista de aves vivas e ovos "]
[998424,"Comércio atacadista de coelhos e outros pequenos animais vivos para alimentação "]
[998726,"Comércio atacadista de carnes bovinas e suínas e derivados "]
["CNAE FISC","AL"]
["2.2 DESCR","IÇAO Obrigatória? Inscrição Obrigatória se a"]
["resposta","à pergunta for "]
["INSCRIÇÃO","ESTADUAL"]
[998727,"Comércio atacadista de aves abatidas e derivados "]
[998728,"Comércio atacadista de pescados e frutos do mar "]
["4634-6/99","Comércio atacadista de carnes e derivados de outros animais "]
[999030,"Comércio atacadista de água mineral "]
[999031,"Comércio atacadista de cerveja, chope e refrigerante "]
[999032,"Comércio atacadista de bebidas com atividade de fracionamento e acondicionamento associada "]
["4635-4/99","Comércio atacadista de bebidas  especificadas anteriormente "]
[999336,"Comércio atacadista de fumo beneficiado "]
[999337,"Comércio atacadista de cigarros, cigarrilhas e charutos "]
[999671,"Comércio atacadista de café torrado, moído e solúvel "]
[999672,"Comércio atacadista de açúcar "]
[999673,"Comércio atacadista de óleos e gorduras "]
[999674,"Comércio atacadista de pães, bolos, biscoitos e ilares "]
[999675,"Comércio atacadista de massas alimentícias "]
[999676,"Comércio atacadista de sorvetes "]
[999677,"Comércio atacadista de chocolates, confeitos, balas, bombons e semelhantes "]
["4637-1/99","Comércio atacadista especializado em outros produtos alimentícios  especificados anteriormente "]
[1000582,"Comércio atacadista de produtos alimentícios em geral "]
[1000583,"Comércio atacadista de produtos alimentícios em geral, com atividade de fracionamento e"]
["acondicio","namento associada "]
[1001375,"Comércio atacadista de tecidos "]
[1001376,"Comércio atacadista de artigos de cama, mesa e banho "]
[1001377,"Comércio atacadista de artigos de armarinho "]
[1001678,"Comércio atacadista de artigos do vestuário e acessórios, exceto profissionais e de segurança "]
[1001679,"Comércio atacadista de roupas e acessórios para uso profissional e de segurança do trabalho "]
[1001982,"Comércio atacadista de calçados "]
[1001983,"Comércio atacadista de bolsas, malas e artigos de viagem "]
[1002287,"Comércio atacadista de medicamentos e drogas de uso humano "]
[1002288,"Comércio atacadista de medicamentos e drogas de uso veterinário "]
[1002593,"Comércio atacadista de instrumentos e materiais para uso médico, cirúrgico, hospitalar e de"]
["laboratór","ios "]
[1002594,"Comércio atacadista de próteses e artigos de ortopedia "]
[1002595,"Comércio atacadista de produtos odontológicos "]
["4646-0/01","Comércio atacadista de cosméticos e produtos de perfumaria "]
["4646-0/02","Comércio atacadista de produtos de higiene pessoal "]
[1003535,"Comércio atacadista de artigos de escritório e de papelaria "]
[1003536,"Comércio atacadista de livros, jornais e outras publicações "]
[1004144,"Comércio atacadista de equipamentos elétricos de uso pessoal e doméstico "]
[1004145,"Comércio atacadista de aparelhos eletrônicos de uso pessoal e doméstico "]
[1004146,"Comércio atacadista de bicicletas, triciclos e outros veículos recreativos "]
[1004147,"Comércio atacadista de móveis e artigos de colchoaria "]
["CNAE FISC","AL"]
["2.2 DESCR","IÇAO Obrigatória? Inscrição Obrigatória se a"]
["resposta","à pergunta for "]
["INSCRIÇÃO","ESTADUAL"]
[1004148,"Comércio atacadista de artigos de tapeçaria; persianas e cortinas "]
[1004149,"Comércio atacadista de lustres, luminárias e abajures "]
[1004150,"Comércio atacadista de filmes, CDs, DVDs, fitas e discos "]
[1004151,"Comércio atacadista de produtos de higiene, limpeza e conservação domiciliar "]
[1004152,"Comércio atacadista de produtos de higiene, limpeza e conservação domiciliar, com atividade de"]
["fracionam","ento e acondicionamento associada "]
[1004153,"Comércio atacadista de jóias, relógios e bijuterias, inclusive pedras preciosas e semipreciosas"]
["lapidadas"]
["4649-4/99","Comércio atacadista de outros equipamentos e artigos de uso pessoal e doméstico  especificados"]
["anteriorm","ente "]
[1004935,"Comércio atacadista de equipamentos de informática "]
[1004936,"Comércio atacadista de suprimentos para informática "]
["4652-4/00","Comércio atacadista de componentes eletrônicos e equipamentos de telefonia e comunicação "]
["4661-3/00","Comércio atacadista de máquinas, aparelhos e equipamentos para uso agropecuário; partes e peças "]
["4662-1/00","Comércio atacadista de máquinas, equipamentos para terraplenagem, mineração e construção; partes"]
["e peças S","IM"]
["4663-0/00","Comércio atacadista de máquinas e equipamentos para uso industrial; partes e peças "]
["4664-8/00","Comércio atacadista de máquinas, aparelhos e equipamentos para uso odonto-médico-hospitalar;"]
["partes e","peças "]
["4665-6/00","Comércio atacadista de máquinas e equipamentos para uso comercial; partes e peças "]
[1011602,"Comércio atacadista de bombas e compressores; partes e peças "]
["4669-9/99","Comércio atacadista de outras máquinas e equipamentos  especificados anteriormente; partes e"]
["peças "]
["4671-1/00","Comércio atacadista de madeira e produtos derivados "]
["4672-9/00","Comércio atacadista de ferragens e ferramentas "]
["4673-7/00","Comércio atacadista de material elétrico "]
["4674-5/00","Comércio atacadista de cimento "]
[1015162,"Comércio atacadista de tintas, vernizes e ilares "]
[1015163,"Comércio atacadista de mármores e granitos "]
[1015164,"Comércio atacadista de vidros, espelhos e vitrais "]
[1015165,"Comércio atacadista especializado de materiais de construção  especificados anteriormente "]
["4679-6/99","Comércio atacadista de materiais de construção em geral "]
[1015954,"Comércio atacadista de álcool carburante, biodiesel, gasolina e demais derivados de petróleo, exceto"]
["lubrifica","ntes,  realizado por transportador retalhista (TRR) "]
[1015955,"Comércio atacadista de combustíveis realizado por transportador retalhista (TRR) "]
[1015956,"Comércio atacadista de combustíveis de origem vegetal, exceto álcool carburante "]
[1015957,"Comércio atacadista de combustíveis de origem mineral em bruto "]
[1015958,"Comércio atacadista de lubrificantes "]
["4682-6/00","Comércio atacadista de gás liqüefeito de petróleo (GLP) "]
["4683-4/00","Comércio atacadista de defensivos agrícolas, adubos, fertilizantes e corretivos do solo "]
[1016868,"Comércio atacadista de resinas e elastômeros "]
["CNAE FISC","AL"]
["2.2 DESCR","IÇAO Obrigatória? Inscrição Obrigatória se a"]
["resposta","à pergunta for "]
["INSCRIÇÃO","ESTADUAL"]
[1016869,"Comércio atacadista de solventes "]
["4684-2/99","Comércio atacadista de outros produtos químicos e petroquímicos  especificados anteriormente "]
["4685-1/00","Comércio atacadista de produtos siderúrgicos e metalúrgicos, exceto para construção "]
[1017811,"Comércio atacadista de papel e papelão em bruto "]
[1017812,"Comércio atacadista de embalagens "]
[1018114,"Comércio atacadista de resíduos de papel e papelão "]
[1018115,"Comércio atacadista de resíduos e sucatas -metálicos, exceto de papel e papelão "]
[1018116,"Comércio atacadista de resíduos e sucatas metálicos "]
[1018723,"Comércio atacadista de produtos da extração mineral, exceto combustíveis "]
[1018724,"Comércio atacadista de fios e fibras têxteis beneficiados * "]
["4689-3/99","Comércio atacadista especializado em outros produtos intermediários  especificados anteriormente"]
["* "]
["4691-5/00","Comércio atacadista de mercadorias em geral, com predominância de produtos alimentícios "]
["4692-3/00","Comércio atacadista de mercadorias em geral, com predominância de insumos agropecuários "]
["4693-1/00","Comércio atacadista de mercadorias em geral, sem predominância de alimentos ou de insumos"]
["agropecuá","rios "]
[1026757,"Comércio varejista de mercadorias em geral, com predominância de produtos alimentícios -"]
["hipermerc","ados "]
[1026758,"Comércio varejista de mercadorias em geral, com predominância de produtos alimentícios -"]
["supermerc","ados "]
["4712-1/00","Comércio varejista de mercadorias em geral, com predominância de produtos alimentícios -"]
["minimerca","dos, mercearias e armazéns "]
["4713-0/01","Lojas de departamentos ou magazines "]
["4713-0/02","Lojas de variedades, exceto lojas de departamentos ou magazines "]
["4713-0/03","Lojas duty free de aeroportos internacionais "]
[1030352,"Padaria e confeitaria com predominância de revenda "]
[1030353,"Comércio varejista de laticínios e frios "]
[1030354,"Comércio varejista de doces, balas, bombons e semelhantes "]
[1030959,"Comércio varejista de carnes - açougues "]
[1030960,"Peixaria "]
["4723-7/00","Comércio varejista de bebidas "]
["4724-5/00","Comércio varejista de hortifrutigranjeiros "]
[1033424,"Tabacaria "]
[1033425,"Comércio varejista de mercadorias em lojas de conveniência "]
["4729-6/99","Comércio varejista de produtos alimentícios em geral ou especializado em produtos alimentícios "]
["especific","ados anteriormente "]
["4731-8/00","Comércio varejista de combustíveis para veículos automotores "]
["4732-6/00","Comércio varejista de lubrificantes "]
["4741-5/00","Comércio varejista de tintas e materiais para pintura "]
["4742-3/00","Comércio varejista de material elétrico "]
["4743-1/00","Comércio varejista de vidros "]
["CNAE FISC","AL"]
["2.2 DESCR","IÇAO Obrigatória? Inscrição Obrigatória se a"]
["resposta","à pergunta for "]
["INSCRIÇÃO","ESTADUAL"]
["4744-0/01","Comércio varejista de ferragens e ferramentas "]
["4744-0/02","Comércio varejista de madeira e artefatos "]
["4744-0/03","Comércio varejista de materiais hidráulicos "]
["4744-0/04","Comércio varejista de cal, areia, pedra britada, tijolos e telhas "]
["4744-0/05","Comércio varejista de materiais de construção  especificados anteriormente "]
["4744-0/06","Comércio varejista de pedras para revestimento "]
["4744-0/99","Comércio varejista de materiais de construção em geral "]
[1041339,"Comércio varejista especializado de equipamentos e suprimentos de informática "]
[1041340,"Recarga de cartuchos para equipamentos de informática "]
["4752-1/00","Comércio varejista especializado de equipamentos de telefonia e comunicação "]
["4753-9/00","Comércio varejista especializado de eletrodomésticos e equipamentos de áudio e vídeo "]
[1042585,"Comércio varejista de móveis "]
[1042586,"Comércio varejista de artigos de colchoaria "]
[1042587,"Comércio varejista de artigos de iluminação "]
[1042889,"Comércio varejista de tecidos "]
[1042890,"Comercio varejista de artigos de armarinho "]
[1042891,"Comercio varejista de artigos de cama, mesa e banho "]
["4756-3/00","Comércio varejista especializado de instrumentos musicais e acessórios "]
["4757-1/00","Comércio varejista especializado de peças e acessórios para aparelhos eletroeletrônicos para uso"]
["doméstico",", exceto informática e comunicação "]
[1044442,"Comércio varejista de artigos de tapeçaria, cortinas e persianas "]
["4759-8/99","Comércio varejista de outros artigos de uso doméstico  especificados anteriormente "]
["4761-0/01","Comércio varejista de livros "]
["4761-0/02","Comércio varejista de jornais e revistas "]
["4761-0/03","Comércio varejista de artigos de papelaria "]
["4762-8/00","Comércio varejista de discos, CDs, DVDs e fitas "]
[1045842,"Comércio varejista de brinquedos e artigos recreativos "]
[1045843,"Comércio varejista de artigos esportivos "]
[1045844,"Comércio varejista de bicicletas e triciclos; peças e acessórios "]
[1045845,"Comércio varejista de artigos de caça, pesca e camping "]
[1045846,"Comércio varejista de embarcações e outros veículos recreativos; peças e acessórios "]
[1048794,"Comércio varejista de produtos farmacêuticos, sem manipulação de fórmulas "]
[1048795,"Comércio varejista de produtos farmacêuticos, com manipulação de fórmulas "]
[1048796,"Comércio varejista de produtos farmacêuticos homeopáticos "]
[1048797,"Comércio varejista de medicamentos veterinários "]
["4772-5/00","Comércio varejista de cosméticos, produtos de perfumaria e de higiene pessoal "]
["4773-3/00","Comércio varejista de artigos médicos e ortopédicos "]
["4774-1/00","Comércio varejista de artigos de óptica "]
["4781-4/00","Comércio varejista de artigos do vestuário e acessórios "]
[1052662,"Comércio varejista de calçados "]
[1052663,"Comércio varejista de artigos de viagem "]
[1052996,"Comércio varejista de artigos de joalheria "]
["CNAE FISC","AL"]
["2.2 DESCR","IÇAO Obrigatória? Inscrição Obrigatória se a"]
["resposta","à pergunta for "]
["INSCRIÇÃO","ESTADUAL"]
[1052997,"Comércio varejista de artigos de relojoaria "]
["4784-9/00","Comércio varejista de gás liqüefeito de petróleo (GLP) "]
[1053908,"Comércio varejista de antigüidades "]
["4785-7/99","Comércio varejista de outros artigos usados "]
["4789-0/01","Comércio varejista de suvenires, bijuterias e artesanatos "]
["4789-0/02","Comércio varejista de plantas e flores naturais "]
["4789-0/03","Comércio varejista de objetos de arte "]
["4789-0/04","Comércio varejista de animais vivos e de artigos e alimentos para animais de estimação "]
["4789-0/05","Comércio varejista de produtos saneantes domissanitários "]
["4789-0/06","Comércio varejista de fogos de artifício e artigos pirotécnicos "]
["4789-0/07","Comércio varejista de equipamentos para escritório "]
["4789-0/08","Comércio varejista de artigos fotográficos e para filmagem "]
["4789-0/09","Comércio varejista de armas e munições "]
["4789-0/99","Comércio varejista de outros produtos  especificados anteriormente "]
["4911-6/00","Transporte ferroviário de carga "]
[1100203,"Transporte ferroviário de passageiros intermunicipal e interestadual "]
[1100204,"Transporte ferroviário de passageiros municipal e em região metropolitana "]
[1100205,"Transporte metroviário "]
[1103459,"Transporte rodoviário coletivo de passageiros, com itinerário fixo, municipal "]
[1103460,"Transporte rodoviário coletivo de passageiros, com itinerário fixo, intermunicipal em região"]
["metropoli","tana "]
[1103765,"Transporte rodoviário coletivo de passageiros, com itinerário fixo, intermunicipal, exceto em região"]
["metropoli","tana "]
[1103766,"Transporte rodoviário coletivo de passageiros, com itinerário fixo, interestadual "]
[1103767,"Transporte rodoviário coletivo de passageiros, com itinerário fixo, internacional "]
["4923-0/01","Serviço de táxi "]
["4923-0/02","Serviço de transporte de passageiros - locação de automóveis com motorista "]
["4924-8/00","Transporte escolar /"]
["Haverá pr","estação de"]
["serviço d","e transporte"]
["intermuni","cipal,"]
["interesta","dual ou"]
["internaci","onal?"]
[1106565,"Transporte rodoviário coletivo de passageiros, sob regime de fretamento, municipal "]
[1106566,"Transporte rodoviário coletivo de passageiros, sob regime de fretamento, intermunicipal, interestadual"]
["e interna","cional "]
[1106567,"Organização de excursões em veículos rodoviários próprios, municipal "]
[1106568,"Organização de excursões em veículos rodoviários próprios, intermunicipal, interestadual e"]
["internaci","onal "]
["4929-9/99","Outros transportes rodoviários de passageiros  especificados anteriormente "]
[1106718,"Transporte rodoviário de carga, exceto produtos perigosos e mudanças, municipal "]
[1106719,"Transporte rodoviário de carga, exceto produtos perigosos e mudanças, intermunicipal, interestadual e"]
["internaci","onal "]
["CNAE FISC","AL"]
["2.2 DESCR","IÇAO Obrigatória? Inscrição Obrigatória se a"]
["resposta","à pergunta for "]
["INSCRIÇÃO","ESTADUAL"]
[1106720,"Transporte rodoviário de produtos perigosos "]
[1106721,"Transporte rodoviário de mudanças "]
["4940-0/00","Transporte dutoviário "]
["4950-7/00","Trens turísticos, teleféricos e ilares "]
[1136361,"Transporte marítimo de cabotagem - Carga "]
[1136362,"Transporte marítimo de cabotagem - passageiros "]
[1136667,"Transporte marítimo de longo curso - Carga "]
[1136668,"Transporte marítimo de longo curso - Passageiros "]
[1139924,"Transporte por navegação interior de carga, municipal, exceto travessia "]
[1139925,"Transporte por navegação interior de carga, intermunicipal, interestadual e internacional, exceto"]
["travessia"]
["5022-0/01","Transporte por navegação interior de passageiros em linhas regulares, municipal, exceto travessia "]
["5022-0/02","Transporte por navegação interior de passageiros em linhas regulares, intermunicipal, interestadual e"]
["internaci","onal, exceto travessia "]
[1143211,"Navegação de apoio marítimo "]
[1143212,"Navegação de apoio portuário "]
[1143213,"Serviços de rebocadores e empurradores "]
[1165522,"Transporte por navegação de travessia, municipal "]
[1165523,"Transporte por navegação de travessia intermunicipal, interestadual e internacional "]
[1168625,"Transporte aquaviário para passeios turísticos /"]
["Haverá pr","estação de"]
["serviço d","e transporte"]
["intermuni","cipal,"]
["interesta","dual ou"]
["internaci","onal?"]
["5099-8/99","Outros transportes aquaviários  especificados anteriormente /"]
["Haverá pr","estação de"]
["serviço d","e transporte"]
["intermuni","cipal,"]
["interesta","dual ou"]
["internaci","onal?"]
["5111-1/00","Transporte aéreo de passageiros regular "]
[1173404,"Serviço de táxi aéreo e locação de aeronaves com tripulação "]
["5112-9/99","Outros serviços de transporte aéreo de passageiros -regular "]
["5120-0/00","Transporte aéreo de carga "]
["5130-7/00","Transporte espacial "]
[1209501,"Armazéns gerais - emissão de warrant "]
[1209502,"Guarda-móveis "]
["5211-7/99","Depósitos de mercadorias para terceiros, exceto armazéns gerais e guarda-móveis "]
["5212-5/00","Carga e descarga "]
["5221-4/00","Concessionárias de rodovias, pontes, túneis e serviços relacionados "]
["5222-2/00","Terminais rodoviários e ferroviários "]
["5223-1/00","Estacionamento de veículos "]
["5229-0/01","Serviços de apoio ao transporte por táxi, inclusive centrais de chamada "]
["CNAE FISC","AL"]
["2.2 DESCR","IÇAO Obrigatória? Inscrição Obrigatória se a"]
["resposta","à pergunta for "]
["INSCRIÇÃO","ESTADUAL"]
["5229-0/02","Serviços de reboque de veículos "]
["5229-0/99","Outras atividades auxiliares dos transportes terrestres  especificadas anteriormente "]
[1216625,"Administração da infra-estrutura portuária "]
[1216626,"Atividades do Operador portuário "]
["5232-0/00","Atividades de agenciamento marítimo "]
[1219728,"Serviços de praticagem "]
["5239-7/99","Atividades auxiliares dos transportes aquaviários  especificadas anteriormente "]
[1219912,"Operação dos aeroportos e campos de aterrissagem "]
["5240-1/99","Atividades auxiliares dos transportes aéreos, exceto operação dos aeroportos e campos de"]
["aterrissa","gem "]
[1223777,"Comissaria de despachos "]
[1223778,"Atividades de despachantes aduaneiros "]
[1223779,"Agenciamento de cargas, exceto para o transporte marítimo "]
[1223780,"Organização logística do transporte de carga "]
[1223781,"Operador de transporte multimodal - OTM "]
[1245599,"Atividades do Correio Nacional "]
[1245600,"Atividades de franqueadas e permissionárias do Correio Nacional "]
[1249162,"Serviços de malote  realizados pelo Correio Nacional "]
[1249163,"Serviços de entrega rápida "]
[1318739,"Hotéis "]
[1318740,"Apart-hotéis "]
[1318741,"Motéis "]
[1347898,"Albergues, exceto assistenciais "]
[1347899,"Campings "]
[1347900,"Pensões "]
["5590-6/99","Outros alojamentos  especificados anteriormente "]
[1355448,"Restaurantes e ilares "]
[1355449,"Bares e outros estabelecimentos especializados em servir bebidas "]
[1355450,"Lanchonetes, casas de chá, de sucos e ilares "]
["5612-1/00","Serviços ambulantes de alimentação "]
[1358704,"Fornecimento de alimentos preparados preponderantemente para empresas "]
[1358705,"Serviços de alimentação para eventos e recepções - bufê / Haverá fornecimento de"]
["alimentaç","ão e/ou bebidas?"]
[1358706,"Cantinas - serviços de alimentação privativos "]
[1358707,"Fornecimento de alimentos preparados preponderantemente para consumo domiciliar "]
["5811-5/00","Edição de livros "]
[1428890,"Edição de jornais diários "]
[1428891,"Edição de jornais  diários "]
["5813-1/00","Edição de revistas "]
["5819-1/00","Edição de cadastros, listas e de outros produtos gráficos "]
["5821-2/00","Edição integrada à impressão de livros "]
["CNAE FISC","AL"]
["2.2 DESCR","IÇAO Obrigatória? Inscrição Obrigatória se a"]
["resposta","à pergunta for "]
["INSCRIÇÃO","ESTADUAL"]
[1432483,"Edição integrada a impressão de jornais diários "]
[1432484,"Edição integrada a impressão de jornais  diários "]
["5823-9/00","Edição integrada à impressão de revistas "]
["5829-8/00","Edição integrada à impressão de cadastros, listas e de outros produtos gráficos "]
[1464989,"Estúdios cinematográficos "]
[1464990,"Produção de filmes para publicidade "]
["5911-1/99","Atividades de produção cinematográfica, de vídeos e de programas de televisão  especificadas"]
["anteriorm","ente "]
["5912-0/01","Serviços de dublagem "]
["5912-0/02","Serviços de mixagem sonora "]
["5912-0/99","Atividades de pós-produção cinematográfica, de vídeos e de programas de televisão  especificadas"]
["anteriorm","ente "]
["5913-8/00","Distribuição cinematográfica, de vídeo e de programas de televisão "]
["5914-6/00","Atividades de exibição cinematográfica "]
["5920-1/00","Atividades de gravação de som e de edição de música "]
["6010-1/00","Atividades de rádio /"]
["O estabel","ecimento"]
["exercerá","também"]
["atividade","s onerosas de"]
["veiculaçã","o de publicidade?"]
["6021-7/00","Atividades de televisão aberta /"]
["O estabel","ecimento"]
["exercerá","também"]
["atividade","s onerosas de"]
["veiculaçã","o de publicidade?"]
[1505652,"Programadoras "]
[1505653,"Atividades relacionadas à televisão por assinatura, exceto programadoras "]
[1537885,"Serviços de telefonia fixa comutada - STFC "]
[1537886,"Serviços de redes de transportes de telecomunicações - SRTT "]
[1537887,"Serviços de comunicação multimídia - SMC "]
["6110-8/99","Serviços de telecomunicações por fio  especificados anteriormente "]
[1541446,"Telefonia móvel celular "]
[1541447,"Serviço móvel especializado - SME "]
["6120-5/99","Serviços de telecomunicações sem fio  especificados anteriormente "]
["6130-2/00","Telecomunicações por satélite "]
["6141-8/00","Operadoras de televisão por assinatura por cabo "]
["6142-6/00","Operadoras de televisão por assinatura por microondas "]
["6143-4/00","Operadoras de televisão por assinatura por satélite "]
[1567044,"Provedores de acesso às redes de comunicações "]
[1567045,"Provedores de voz sobre protocolo internet - VOIP "]
["6190-6/99","Outras atividades de telecomunicações  especificadas anteriormente "]
[1571030,"Desenvolvimento de programas de computador sob encomenda "]
["CNAE FISC","AL"]
["2.2 DESCR","IÇAO Obrigatória? Inscrição Obrigatória se a"]
["resposta","à pergunta for "]
["INSCRIÇÃO","ESTADUAL"]
[1571031,"Web design "]
["6202-3/00","Desenvolvimento e licenciamento de programas de computador customizáveis "]
["6203-1/00","Desenvolvimento e licenciamento de programas de computador -customizáveis "]
["6204-0/00","Consultoria em tecnologia da informação "]
["6209-1/00","Suporte técnico, manutenção e outros serviços em tecnologia da informação "]
["6311-9/00","Tratamento de dados, provedores de serviços de aplicação e serviços de hospedagem na internet "]
["6319-4/00","Portais, provedores de conteúdo e outros serviços de informação na internet /"]
["O estabel","ecimento"]
["exercerá","também"]
["atividade","s onerosas de"]
["veiculaçã","o de publicidade?"]
["6391-7/00","Agências de notícias "]
["6399-2/00","Outras atividades de prestação de serviços de informação  especificadas anteriormente "]
["6410-7/00","Banco Central "]
["6421-2/00","Bancos comerciais "]
["6422-1/00","Bancos múltiplos, com carteira comercial "]
["6423-9/00","Caixas econômicas "]
[1652541,"Bancos cooperativos "]
[1652542,"Cooperativas centrais de crédito "]
[1652543,"Cooperativas de crédito mútuo "]
[1652544,"Cooperativas de crédito rural "]
["6431-0/00","Bancos múltiplos, sem carteira comercial "]
["6432-8/00","Bancos de investimento "]
["6433-6/00","Bancos de desenvolvimento "]
["6434-4/00","Agências de fomento "]
[1656408,"Sociedades de crédito imobiliário "]
[1656409,"Associações de poupança e empréstimo "]
[1656410,"Companhias hipotecárias "]
["6436-1/00","Sociedades de crédito, financiamento e investimento - financeiras "]
["6437-9/00","Sociedades de crédito ao microempreendedor "]
[1657654,"Bancos de câmbio "]
[1657655,"Outra instituições de intermediação -monetária  especificadas anteriormente "]
["6440-9/00","Arrendamento mercantil "]
["6450-6/00","Sociedades de capitalização "]
["6461-1/00","Holdings de instituições financeiras "]
["6462-0/00","Holdings de instituições -financeiras "]
["6463-8/00","Outras sociedades de participação, exceto holdings "]
[1669161,"Fundos de investimento, exceto previdenciários e imobiliários "]
[1669162,"Fundos de investimento previdenciários "]
[1669163,"Fundos de investimento imobiliários "]
["6491-3/00","Sociedades de fomento mercantil - factoring "]
["6492-1/00","Securitização de créditos "]
["CNAE FISC","AL"]
["2.2 DESCR","IÇAO Obrigatória? Inscrição Obrigatória se a"]
["resposta","à pergunta for "]
["INSCRIÇÃO","ESTADUAL"]
["6493-0/00","Administração de consórcios para aquisição de bens e direitos "]
[1679996,"Clubes de investimento "]
[1679997,"Sociedades de investimento "]
[1679998,"Fundo garantidor de crédito "]
[1679999,"Caixas de financiamento de corporações "]
[1680000,"Concessão de crédito pelas OSCIP "]
["6499-9/99","Outras atividades de serviços financeiros  especificadas anteriormente "]
[1684135,"Sociedade seguradora de seguros vida "]
[1684136,"Planos de auxílio-funeral "]
["6512-0/00","Sociedade seguradora de seguros  vida "]
["6520-1/00","Sociedade seguradora de seguros saúde "]
["6530-8/00","Resseguros "]
["6541-3/00","Previdência complementar fechada "]
["6542-1/00","Previdência complementar aberta "]
["6550-2/00","Planos de saúde "]
[1720871,"Bolsa de valores "]
[1720872,"Bolsa de mercadorias "]
[1720873,"Bolsa de mercadorias e futuros "]
[1720874,"Administração de mercados de balcão organizados "]
[1721176,"Corretoras de títulos e valores mobiliários "]
[1721177,"Distribuidoras de títulos e valores mobiliários "]
[1721178,"Corretoras de câmbio "]
[1721179,"Corretoras de contratos de mercadorias "]
[1721180,"Agentes de investimentos em aplicações financeiras "]
["6613-4/00","Administração de cartões de crédito "]
[1723640,"Serviços de liquidação e custódia "]
[1723641,"Correspondentes de instituições financeiras "]
[1723642,"Representações de bancos estrangeiros "]
[1723643,"Caixas eletrônicos "]
[1723644,"Operadoras de cartões de débito "]
["6619-3/99","Outras atividades auxiliares dos serviços financeiros  especificadas anteriormente "]
[1724432,"Peritos e avaliadores de seguros "]
[1724433,"Auditoria e consultoria atuarial "]
["6622-3/00","Corretores e agentes de seguros, de planos de previdência complementar e de saúde "]
["6629-1/00","Atividades auxiliares dos seguros, da previdência complementar e dos planos de saúde "]
["especific","adas anteriormente "]
["6630-4/00","Atividades de administração de fundos por contrato ou comissão "]
[1793374,"Compra e venda de imóveis próprios "]
[1793375,"Aluguel de imóveis próprios /"]
["Haverá a","prática de"]
["atividade","de self-storage?"]
[1793376,"Loteamento de imóveis próprios "]
[1797573,"Corretagem na compra e venda e avaliação de imóveis "]
["CNAE FISC","AL"]
["2.2 DESCR","IÇAO Obrigatória? Inscrição Obrigatória se a"]
["resposta","à pergunta for "]
["INSCRIÇÃO","ESTADUAL"]
[1797574,"Corretagem no aluguel de imóveis "]
["6822-6/00","Gestão e administração da propriedade imobiliária* "]
[1830413,"Serviços advocatícios "]
[1830414,"Atividades auxiliares da justiça "]
[1830415,"Agente de propriedade industrial "]
["6912-5/00","Cartórios "]
[1833671,"Atividades de contabilidade "]
[1833672,"Atividades de consultoria e auditoria contábil e tributária "]
["7020-4/00","Atividades de consultoria em gestão empresarial, exceto consultoria técnica específica "]
["7111-1/00","Serviços de arquitetura "]
["7112-0/00","Serviços de engenharia "]
[1906383,"Serviços de cartografia, topografia e geodésia "]
[1906384,"Atividades de estudos geológicos "]
[1906385,"Serviços de desenho técnico relacionados à arquitetura e engenharia "]
[1906386,"Serviços de perícia técnica relacionados à segurança do trabalho "]
["7119-7/99","Atividades técnicas relacionadas à engenharia e arquitetura  especificadas anteriormente "]
["7120-1/00","Testes e análises técnicas "]
["7210-0/00","Pesquisa e desenvolvimento experimental em ciências físicas e naturais "]
["7220-7/00","Pesquisa e desenvolvimento experimental em ciências sociais e humanas "]
["7311-4/00","Agências de publicidade "]
["7312-2/00","Agenciamento de espaços para publicidade, exceto em veículos de comunicação "]
["7319-0/01","Criação e montagem de estandes para feiras e exposições "]
["7319-0/02","Promoção de vendas "]
["7319-0/03","Marketing direto "]
["7319-0/04","Consultoria em publicidade "]
["7319-0/99","Outras atividades de publicidade  especificadas anteriormente "]
["7320-3/00","Pesquisas de mercado e de opinião pública "]
[2012521,"Design de produto "]
["7410-2/99","Atividades de design  especificadas anteriormente "]
[2012520,"Design de interiores "]
["7420-0/01","Atividades de produção de fotografias, exceto aérea e submarina "]
["7420-0/02","Atividades de produção de fotografias aéreas e submarinas "]
["7420-0/03","Laboratórios fotográficos "]
["7420-0/04","Filmagem de festas e eventos "]
["7420-0/05","Serviços de microfilmagem "]
[2041708,"Serviços de tradução, interpretação e ilares "]
[2041709,"Escafandria e mergulho "]
[2041710,"Serviços de agronomia e de consultoria às atividades agrícolas e pecuárias "]
[2041711,"Atividades de intermediação e agenciamento de serviços e negócios em geral, exceto imobiliários "]
[2041712,"Agenciamento de profissionais para atividades esportivas, culturais e artísticas "]
["7490-1/99","Outras atividades profissionais, científicas e técnicas  especificadas anteriormente "]
["7500-1/00","Atividades veterinárias "]
["CNAE FISC","AL"]
["2.2 DESCR","IÇAO Obrigatória? Inscrição Obrigatória se a"]
["resposta","à pergunta for "]
["INSCRIÇÃO","ESTADUAL"]
["7711-0/00","Locação de automóveis sem condutor "]
[2125468,"Locação de embarcações sem tripulação, exceto para fins recreativos "]
[2125469,"Locação de aeronaves sem tripulação "]
["7719-5/99","Locação de outros meios de transporte  especificados anteriormente, sem condutor "]
["7721-7/00","Aluguel de equipamentos recreativos e esportivos "]
["7722-5/00","Aluguel de fitas de vídeo, DVDs e ilares "]
["7723-3/00","Aluguel de objetos do vestuário, jóias e acessórios "]
[2129032,"Aluguel de aparelhos de jogos eletrônicos "]
[2129033,"Aluguel de móveis, utensílios e aparelhos de uso doméstico e pessoal; instrumentos musicais "]
[2129034,"Aluguel de material médico* "]
["7729-2/99","Aluguel de outros objetos pessoais e domésticos  especificados anteriormente "]
["7731-4/00","Aluguel de máquinas e equipamentos agrícolas sem operador "]
[2130127,"Aluguel de máquinas e equipamentos para construção sem operador, exceto andaimes "]
[2130128,"Aluguel de andaimes "]
["7733-1/00","Aluguel de máquinas e equipamentos para escritórios "]
["7739-0/01","Aluguel de máquinas e equipamentos para extração de minérios e petróleo, sem operador "]
["7739-0/02","Aluguel de equipamentos científicos, médicos e hospitalares, sem operador "]
["7739-0/03","Aluguel de palcos, coberturas e outras estruturas de uso temporário, exceto andaimes "]
["7739-0/99","Aluguel de outras máquinas e equipamentos comerciais e industriais  especificados anteriormente,"]
["sem opera","dor "]
["7740-3/00","Gestão de ativos intangíveis -financeiros "]
["7810-8/00","Seleção e agenciamento de mão-de-obra "]
["7820-5/00","Locação de mão-de-obra temporária "]
["7830-2/00","Fornecimento e gestão de recursos humanos para terceiros "]
["7911-2/00","Agências de viagens "]
["7912-1/00","Operadores turísticos "]
["7990-2/00","Serviços de reservas e outros serviços de turismo  especificados anteriormente "]
[2231999,"Atividades de vigilância e segurança privada "]
[2232000,"Serviços de adestramento de cães de guarda "]
["8012-9/00","Atividades de transporte de valores "]
["8020-0/01","Atividades de monitoramento de sistemas de segurança eletrônico "]
["8020-0/02","Outras atividades de serviços de segurança "]
["8030-7/00","Atividades de investigação particular "]
["8111-7/00","Serviços combinados para apoio a edifícios, exceto condomínios prediais "]
["8112-5/00","Condomínios prediais "]
["8121-4/00","Limpeza em prédios e em domicílios "]
["8122-2/00","Imunização e controle de pragas urbanas "]
["8129-0/00","Atividades de limpeza  especificadas anteriormente "]
["8130-3/00","Atividades paisagísticas "]
["8211-3/00","Serviços combinados de escritório e apoio administrativo "]
[2308212,"Fotocópias "]
["CNAE FISC","AL"]
["2.2 DESCR","IÇAO Obrigatória? Inscrição Obrigatória se a"]
["resposta","à pergunta for "]
["INSCRIÇÃO","ESTADUAL"]
["8219-9/99","Preparação de documentos e serviços especializados de apoio administrativo  especificados"]
["anteriorm","ente "]
["8220-2/00","Atividades de teleatendimento "]
["8230-0/01","Serviços de organização de feiras, congressos, exposições e festas "]
["8230-0/02","Casas de festas e eventos "]
["8291-1/00","Atividades de cobranças e informações cadastrais "]
["8292-0/00","Envasamento e empacotamento sob contrato "]
[2337370,"Medição de consumo de energia elétrica, gás e água "]
[2337371,"Emissão de vales-alimentação, vales-transporte e ilares "]
[2337372,"Serviços de gravação de carimbos, exceto confecção "]
[2337373,"Leiloeiros independentes "]
[2337374,"Serviços de levantamento de fundos sob contrato "]
[2337375,"Casas lotéricas "]
[2337376,"Salas de acesso à internet "]
["8299-7/99","Outras atividades de serviços prestados principalmente às empresas  especificadas anteriormente "]
["8411-6/00","Administração pública em geral "]
["8412-4/00","Regulação das atividades de saúde, educação, serviços culturais e outros serviços sociais "]
["8413-2/00","Regulação das atividades econômicas "]
["8421-3/00","Relações exteriores "]
["8422-1/00","Defesa "]
["8423-0/00","Justiça "]
["8424-8/00","Segurança e ordem pública "]
["8425-6/00","Defesa Civil "]
["8430-2/00","Seguridade social obrigatória "]
["8511-2/00","Educação infantil - creche "]
["8512-1/00","Educação infantil - pré-escola "]
["8513-9/00","Ensino fundamental "]
["8520-1/00","Ensino médio "]
["8531-7/00","Educação superior - graduação "]
["8532-5/00","Educação superior - graduação e pós-graduação "]
["8533-3/00","Educação superior - pós-graduação e extensão "]
["8541-4/00","Educação profissional de nível técnico "]
["8542-2/00","Educação profissional de nível tecnológico "]
[2428924,"Administração de caixas escolares "]
[2428925,"Serviços auxiliares à educação "]
["8591-1/00","Ensino de esportes "]
[2444449,"Ensino de dança "]
[2444450,"Ensino de artes cênicas, exceto dança "]
[2444451,"Ensino de música "]
["8592-9/99","Ensino de arte e cultura  especificado anteriormente "]
["8593-7/00","Ensino de idiomas "]
["CNAE FISC","AL"]
["2.2 DESCR","IÇAO Obrigatória? Inscrição Obrigatória se a"]
["resposta","à pergunta for "]
["INSCRIÇÃO","ESTADUAL"]
[2446913,"Formação de condutores "]
[2446914,"Cursos de pilotagem "]
[2446915,"Treinamento em informática "]
[2446916,"Treinamento em desenvolvimento profissional e gerencial "]
[2446917,"Cursos preparatórios para concursos "]
["8599-6/99","Outras atividades de ensino  especificadas anteriormente "]
[2450779,"Atividades de atendimento hospitalar, exceto pronto-socorro e unidades para atendimento a urgências "]
[2450780,"Atividades de atendimento em pronto-socorro e unidades hospitalares para atendimento a urgências "]
[2454948,"UTI móvel "]
[2454949,"Serviços móveis de atendimento a urgências, exceto por UTI móvel "]
["8622-4/00","Serviços de remoção de pacientes, exceto os serviços móveis de atendimento a urgências "]
[2458204,"Atividade médica ambulatorial com recursos para realização de procedimentos cirúrgicos "]
[2458205,"Atividade médica ambulatorial com recursos para realização de exames complementares "]
[2458206,"Atividade médica ambulatorial restrita a consultas "]
[2458207,"Atividade odontológica "]
[2458209,"Serviços de vacinação e imunização humana "]
[2458210,"Atividades de reprodução humana assistida "]
["8630-5/99","Atividades de atenção ambulatorial  especificadas anteriormente "]
[2461767,"Laboratórios de anatomia patológica e citológica "]
[2461768,"Laboratórios clínicos "]
[2461769,"Serviços de diálise e nefrologia "]
[2461770,"Serviços de tomografia "]
[2461771,"Serviços de diagnóstico por imagem com uso de radiação ionizante, exceto tomografia "]
[2461772,"Serviços de ressonância magnética "]
[2461773,"Serviços de diagnóstico por imagem sem uso de radiação ionizante, exceto ressonância magnética "]
[2461774,"Serviços de diagnóstico por registro gráfico - ECG, EEG e outros exames análogos "]
[2461775,"Serviços de diagnóstico por métodos ópticos - endoscopia e outros exames análogos "]
[2461776,"Serviços de quimioterapia "]
[2461777,"Serviços de radioterapia "]
[2461778,"Serviços de hemoterapia "]
[2461779,"Serviços de litotripsia "]
[2461780,"Serviços de bancos de células e tecidos humanos "]
["8640-2/99","Atividades de serviços de complementação diagnóstica e terapêutica  especificadas anteriormente "]
["8650-0/01","Atividades de enfermagem "]
["8650-0/02","Atividades de profissionais da nutrição "]
["8650-0/03","Atividades de psicologia e psicanálise "]
["8650-0/04","Atividades de fisioterapia "]
["8650-0/05","Atividades de terapia ocupacional "]
["CNAE FISC","AL"]
["2.2 DESCR","IÇAO Obrigatória? Inscrição Obrigatória se a"]
["resposta","à pergunta for "]
["INSCRIÇÃO","ESTADUAL"]
["8650-0/06","Atividades de fonoaudiologia "]
["8650-0/07","Atividades de terapia de nutrição enteral e parenteral "]
["8650-0/99","Atividades de profissionais da área de saúde  especificadas anteriormente "]
["8660-7/00","Atividades de apoio à gestão de saúde "]
[2480242,"Atividades de práticas integrativas e complementares em saúde humana "]
[2480243,"Atividades de banco de leite humano "]
[2480244,"Atividades de acupuntura "]
[2480245,"Atividades de podologia "]
["8690-9/99","Outras atividades de atenção à saúde humana  especificadas anteriormente "]
[2487788,"Clínicas e residências geriátricas "]
[2487789,"Instituições de longa permanência para idosos "]
[2487790,"Atividades de assistência a deficientes físicos, imunodeprimidos e convalescentes "]
[2487791,"Centros de apoio a pacientes com câncer e com AIDS "]
[2487792,"Condomínios residenciais para idosos "]
["8712-3/00","Atividades de fornecimento de infra-estrutura de apoio e assistência a paciente no domicílio "]
[2491046,"Atividades de centros de assistência psicossocial "]
["8720-4/99","Atividades de assistência psicossocial e à saúde a portadores de distúrbios psíquicos, deficiência"]
["mental e","dependência química  especificadas anteriormente "]
[2494608,"Orfanatos "]
[2494609,"Albergues assistenciais "]
["8730-1/99","Atividades de assistência social prestadas em residências coletivas e particulares  especificadas"]
["anteriorm","ente "]
["8800-6/00","Serviços de assistência social sem alojamento "]
[2593832,"Produção teatral "]
[2593833,"Produção musical "]
[2593834,"Produção de espetáculos de dança "]
[2593835,"Produção de espetáculos circenses, de marionetes e ilares "]
[2593836,"Produção de espetáculos de rodeios, vaquejadas e ilares "]
[2593837,"Atividades de sonorização e de iluminação "]
["9001-9/99","Artes cênicas, espetáculos e atividades complementares  especificadas anteriormente "]
[2594135,"Atividades de artistas plásticos, jornalistas independentes e escritores "]
[2594136,"Restauração de obras-de-arte "]
["9003-5/00","Gestão de espaços para artes cênicas, espetáculos e outras atividades artísticas "]
["9101-5/00","Atividades de bibliotecas e arquivos "]
[2630537,"Atividades de museus e de exploração de lugares e prédios históricos e atrações ilares "]
[2630538,"Restauração e conservação de lugares e prédios históricos "]
["9103-1/00","Atividades de jardins botânicos, zoológicos, parques nacionais, reservas ecológicas e áreas de"]
["proteção","ambiental "]
[2666332,"Casas de bingo "]
[2666333,"Exploração de apostas em corridas de cavalos "]
["9200-3/99","Exploração de jogos de azar e apostas  especificados anteriormente "]
["9311-5/00","Gestão de instalações de esportes "]
["CNAE FISC","AL"]
["2.2 DESCR","IÇAO Obrigatória? Inscrição Obrigatória se a"]
["resposta","à pergunta for "]
["INSCRIÇÃO","ESTADUAL"]
["9312-3/00","Clubes sociais, esportivos e ilares "]
["9313-1/00","Atividades de condicionamento físico "]
[2709736,"Produção e promoção de eventos esportivos "]
["9319-1/99","Outras atividades esportivas  especificadas anteriormente "]
["9321-2/00","Parques de diversão e parques temáticos "]
[2713601,"Discotecas, danceterias, salões de dança e ilares "]
[2713602,"Exploração de boliches "]
[2713603,"Exploração de jogos de sinuca, bilhar e ilares "]
[2713604,"Exploração de jogos eletrônicos recreativos "]
["9329-8/99","Outras atividades de recreação e lazer  especificadas anteriormente "]
["9411-1/00","Atividades de organizações associativas patronais e empresariais "]
["9412-0/01","Atividades de fiscalização profissional "]
["9412-0/99","Outras Atividades associativas profissionais "]
["9420-1/00","Atividades de organizações sindicais "]
["9430-8/00","Atividades de associações de defesa de direitos sociais "]
["9491-0/00","Atividades de organizações religiosas ou filosóficas "]
["9492-8/00","Atividades de organizações políticas "]
["9493-6/00","Atividades de organizações associativas ligadas à cultura e à arte "]
["9499-5/00","Atividades associativas  especificadas anteriormente "]
["9511-8/00","Reparação e manutenção de computadores e de equipamentos periféricos /"]
["Haverá fo","rnecimento de"]
["partes e/","ou peças?"]
["9512-6/00","Reparação e manutenção de equipamentos de comunicação /"]
["Haverá fo","rnecimento de"]
["partes e/","ou peças?"]
["9521-5/00","Reparação e manutenção de equipamentos eletroeletrônicos de uso pessoal e doméstico /"]
["Haverá fo","rnecimento de"]
["partes e/","ou peças?"]
[2786437,"Reparação de calçados, de bolsas e artigos de viagem* "]
[2786438,"Chaveiros "]
[2786439,"Reparação de relógios "]
[2786440,"Reparação de bicicletas, triciclos e outros veículos -motorizados /"]
["Haverá fo","rnecimento de"]
["partes e/","ou peças?"]
[2786441,"Reparação de artigos do mobiliário "]
[2786442,"Reparação de jóias "]
["9529-1/99","Reparação e manutenção de outros objetos e equipamentos pessoais e domésticos  especificados"]
["anteriorm","ente "]
[2812916,"Lavanderias "]
[2812917,"Tinturarias "]
[2812918,"Toalheiros "]
[2813220,"Cabeleireiros, manicure e pedicure "]
[2813221,"Atividades de estética e outros serviços de cuidados com a beleza "]
[2813524,"Gestão e manutenção de cemitérios "]
[2813525,"Serviços de cremação "]
[2813526,"Serviços de sepultamento "]
["CNAE FISC","AL"]
["2.2 DESCR","IÇAO Obrigatória? Inscrição Obrigatória se a"]
["resposta","à pergunta for "]
["INSCRIÇÃO","ESTADUAL"]
[2813527,"Serviços de funerárias "]
[2813528,"Serviços de somatoconservação "]
["9603-3/99","Atividades funerárias e serviços relacionados  especificados anteriormente "]
[2815689,"Agências matrimoniais "]
[2815694,"Alojamento de animais domésticos "]
[2815695,"Higiene e embelezamento de animais domésticos "]
[2815691,"Exploração de máquinas de serviços pessoais acionadas por moeda "]
[2815692,"Atividades de sauna e banhos "]
[2815693,"Serviços de tatuagem e colocação de piercing "]
["9609-2/99","Outras atividades de serviços pessoais  especificadas anteriormente "]
["9700-5/00","Serviços domésticos "]
["9900-8/00","Organismos internacionais e outras instituições extraterritoriais "]